Workbook

Sheet 1
A1: FATURAMENTO REFERENTE AO DIA | B1: 2017-04-30 | C1: Previsto | F1: Saldo do dia anterios | I1: FATURAMENTO REAL | K1: =B1+1 -> 2017-05-01 | M1: Dinheiro em Conta | N1: =10667.1+786.24 -> 11453.34 | S1: =' Fechamento Mensal '!$B$13 -> MP | T1: Valor | U1: =' Fechamento Mensal '!$B$14 -> Op | W1: =' Fechamento Mensal '!$B$15 -> Fx | Y1: =' Fechamento Mensal '!$B$16 -> Va | AA1: =' Fechamento Mensal '!$B$17 -> Tx | AC1: =' Fechamento Mensal '!$B$18 -> PL | AE1: =' Fechamento Mensal '!M5 -> 0
A2: Contas Previstas para pagamento | C2: Saldo Anterior | E2: Tipo de Custo | F2: Contas Pagas - Real | M2: Notas Grandes | N2: =2750+500 -> 3250 | S2: =IFERROR(VLOOKUP($S$1,E4:I4,2,FALSE),"-") -> - | T2: =IFERROR(VLOOKUP($S$1,E4:J4,4,FALSE),"-") -> -
A3: Fornecedor | B3: Vencimento | C3: Valor | D3: =SUM(D1:D2) -> 0 | F3: Fornecedor | G3: Vencimento | H3: Valor | I3: Forma de pagamento | J3: - | M3: Dinheiro trocado | N3: =360+240+95+162+58.35 -> 915.35 | S3: =IFERROR(VLOOKUP($S$1,E5:I5,2,FALSE),"-") -> -
D4: =D1-C4 -> 0 | J4: =J1-H4 -> 0 | M4: Cheques | N4: =55 -> 55 | S4: =IFERROR(VLOOKUP($S$1,E6:I6,2,FALSE),"-") -> -
D5: =D4-C5 -> 0 | J5: =J4-H5 -> 0 | M5: Total | N5: =SUM(N1:N4) -> 15673.69 | S5: -
D6: 0 | J6: 0 | S6: -
D7: 0 | J7: 0 | S7: -
D8: 0 | J8: 0 | M8: Tipo de Custos | N8: Cód | O8: Total dia | S8: -
D9: 0 | J9: 0 | M9: =' Fechamento Mensal '!$A$13 -> Matéria-Prima | N9: =' Fechamento Mensal '!$B$13 -> MP | O9: =SUMIF($E$4:$E$31,N9,H4:H31) -> 0 | S9: -
D10: 0 | J10: 0 | M10: =' Fechamento Mensal '!$A$14 -> Operacional | N10: =' Fechamento Mensal '!$B$14 -> Op | O10: =SUMIF($E$4:$E$31,N10,$H$4:$H$31) -> 0 | S10: -
D11: 0 | J11: 0 | M11: =' Fechamento Mensal '!$A$15 -> Despesas Fixas | N11: =' Fechamento Mensal '!$B$15 -> Fx | O11: =SUMIF($E$4:$E$31,N11,$H$4:$H$31) -> 0 | S11: -
D12: 0 | J12: 0 | M12: =' Fechamento Mensal '!$A$16 -> Variáveis | N12: =' Fechamento Mensal '!$B$16 -> Va | O12: 0 | S12: -
D13: 0 | J13: 0 | M13: =' Fechamento Mensal '!$A$17 -> Financeiras (taxas e juros) | N13: =' Fechamento Mensal '!$B$17 -> Tx | O13: 0 | S13: -
D14: 0 | J14: 0 | M14: =' Fechamento Mensal '!$A$18 -> Pró-labore | N14: =' Fechamento Mensal '!$B$18 -> PL | O14: 0 | S14: -
D15: 0 | J15: 0 | M15: =' Fechamento Mensal '!$A$19 -> Outros | N15: =' Fechamento Mensal '!B19 -> Ou | O15: 0 | S15: -
D16: 0 | J16: 0 | S16: -
D17: 0 | J17: 0 | S17: -
D18: 0 | J18: 0 | S18: -
D19: 0 | J19: 0 | S19: -
D20: 0 | J20: 0 | S20: -
D21: 0 | J21: 0 | S21: -
D22: 0 | J22: 0 | S22: -
D23: 0 | J23: 0 | S23: -
D24: 0 | J24: 0 | S24: -
D25: 0 | J25: 0 | S25: -
D26: 0 | J26: 0 | S26: -
D27: 0 | J27: 0 | S27: -
D28: 0 | J28: 0 | S28: -
D29: 0 | J29: 0 | S29: -
D30: 0 | J30: 0
D31: 0 | J31: 0
A32: Total | C32: =SUM(C4:C31) -> 0 | F32: Total | H32: =SUM(H4:H31) -> 0

Sheet 2
A1: FATURAMENTO REFERENTE AO DIA | B1: ='1'!K1:K32+1 -> 2017-05-02 | C1: Previsto | F1: Saldo do dia anterios | H1: ='1'!J31 -> 0 | I1: FATURAMENTO REAL | K1: =B1+1 -> 2017-05-03 | M1: Dinheiro em Conta | N1: =10667.1+786.24 -> 11453.34
A2: Contas Previstas para pagamento | C2: Saldo Anterior | D2: ='1'!D31 -> 0 | E2: Tipo de Custo | F2: Contas Pagas - Real | M2: Notas Grandes | N2: =2750+500 -> 3250
A3: Fornecedor | B3: Vencimento | C3: Valor | D3: =SUM(D1:D2) -> 0 | F3: Fornecedor | G3: Vencimento | H3: Valor | I3: Forma de pagamento | J3: - | M3: Dinheiro trocado | N3: =360+240+95+162+58.35 -> 915.35
D4: =D3-C4 -> 0 | J4: =J1-H4 -> 0 | M4: Cheques | N4: =55 -> 55
D5: =D4-C5 -> 0 | J5: =J4-H5 -> 0 | M5: Total | N5: =SUM(N1:N4) -> 15673.69
D6: 0 | J6: 0
D7: 0 | J7: 0
D8: 0 | J8: 0 | M8: Tipo de Custos | N8: Cód | O8: Total dia
D9: 0 | J9: 0 | M9: =' Fechamento Mensal '!$A$13 -> Matéria-Prima | N9: =' Fechamento Mensal '!$B$13 -> MP | O9: =SUMIF($E$4:$E$31,N9,H4:H31) -> 0
D10: 0 | J10: 0 | M10: =' Fechamento Mensal '!$A$14 -> Operacional | N10: =' Fechamento Mensal '!$B$14 -> Op | O10: =SUMIF($E$4:$E$31,N10,$H$4:$H$31) -> 0
D11: 0 | J11: 0 | M11: =' Fechamento Mensal '!$A$15 -> Despesas Fixas | N11: =' Fechamento Mensal '!$B$15 -> Fx | O11: =SUMIF($E$4:$E$31,N11,$H$4:$H$31) -> 0
D12: 0 | J12: 0 | M12: =' Fechamento Mensal '!$A$16 -> Variáveis | N12: =' Fechamento Mensal '!$B$16 -> Va | O12: 0
D13: 0 | J13: 0 | M13: =' Fechamento Mensal '!$A$17 -> Financeiras (taxas e juros) | N13: =' Fechamento Mensal '!$B$17 -> Tx | O13: 0
D14: 0 | J14: 0 | M14: =' Fechamento Mensal '!$A$18 -> Pró-labore | N14: =' Fechamento Mensal '!$B$18 -> PL | O14: 0
D15: 0 | J15: 0 | M15: =' Fechamento Mensal '!$A$19 -> Outros | N15: =' Fechamento Mensal '!B19 -> Ou | O15: 0
D16: 0 | J16: 0
D17: 0 | J17: 0
D18: 0 | J18: 0
D19: 0 | J19: 0
D20: 0 | J20: 0
D21: 0 | J21: 0
D22: 0 | J22: 0
D23: 0 | J23: 0
D24: 0 | J24: 0
D25: 0 | J25: 0
D26: 0 | J26: 0
D27: 0 | J27: 0
D28: 0 | J28: 0
D29: 0 | J29: 0
D30: 0 | J30: 0
D31: 0 | J31: 0
A32: Total | C32: =SUM(C4:C31) -> 0 | F32: Total | H32: =SUM(H4:H31) -> 0

Sheet 3
A1: FATURAMENTO REFERENTE AO DIA | B1: ='2'!K1:K32+1 -> 2017-05-04 | C1: Previsto | F1: Saldo do dia anterios | H1: ='2'!J31 -> 0 | I1: FATURAMENTO REAL | K1: =B1+1 -> 2017-05-05 | M1: Dinheiro em Conta | N1: =3324.69 -> 3324.69
A2: Contas Previstas para pagamento | C2: Saldo Anterior | D2: ='2'!D31 -> 0 | E2: Tipo de Custo | F2: Contas Pagas - Real | M2: Notas Grandes | N2: =1500 -> 1500
A3: Fornecedor | B3: Vencimento | C3: Valor | D3: =SUM(D1:D2) -> 0 | F3: Fornecedor | G3: Vencimento | H3: Valor | I3: Forma de pagamento | J3: - | M3: Dinheiro trocado | N3: =280+130+90+172+54.55 -> 726.55
D4: =D3-C4 -> 0 | M4: Cheques | N4: 55
D5: =D4-C5 -> 0 | M5: Total | N5: =SUM(N1:N4) -> 5606.24
D6: 0 | J6: =J1-H6 -> 0
D7: 0 | J7: =J6-H7 -> 0
D8: 0 | J8: 0 | M8: Tipo de Custos | N8: Cód | O8: Total dia
D9: 0 | J9: 0 | M9: =' Fechamento Mensal '!$A$13 -> Matéria-Prima | N9: =' Fechamento Mensal '!$B$13 -> MP | O9: =SUMIF($E$4:$E$31,N9,H4:H31) -> 0
D10: 0 | J10: 0 | M10: =' Fechamento Mensal '!$A$14 -> Operacional | N10: =' Fechamento Mensal '!$B$14 -> Op | O10: =SUMIF($E$4:$E$31,N10,$H$4:$H$31) -> 0
D11: 0 | J11: 0 | M11: =' Fechamento Mensal '!$A$15 -> Despesas Fixas | N11: =' Fechamento Mensal '!$B$15 -> Fx | O11: =SUMIF($E$4:$E$31,N11,$H$4:$H$31) -> 0
D12: 0 | J12: 0 | M12: =' Fechamento Mensal '!$A$16 -> Variáveis | N12: =' Fechamento Mensal '!$B$16 -> Va | O12: 0
D13: 0 | J13: 0 | M13: =' Fechamento Mensal '!$A$17 -> Financeiras (taxas e juros) | N13: =' Fechamento Mensal '!$B$17 -> Tx | O13: 0
D14: 0 | J14: 0 | M14: =' Fechamento Mensal '!$A$18 -> Pró-labore | N14: =' Fechamento Mensal '!$B$18 -> PL | O14: 0
D15: 0 | J15: 0 | M15: =' Fechamento Mensal '!$A$19 -> Outros | N15: =' Fechamento Mensal '!B19 -> Ou | O15: 0
D16: 0 | J16: 0
D17: 0 | J17: 0
D18: 0 | J18: 0
D19: 0 | J19: 0
D20: 0 | J20: 0
D21: 0 | J21: 0
D22: 0 | J22: 0
D23: 0 | J23: 0
D24: 0 | J24: 0
D25: 0 | J25: 0
D26: 0 | J26: 0
D27: 0 | J27: 0
D28: 0 | J28: 0
D29: 0 | J29: 0
D30: 0 | J30: 0
D31: 0 | J31: 0
A32: Total | C32: =SUM(C4:C31) -> 0 | F32: Total | H32: =SUM(H4:H31) -> 0

Sheet 4
A1: FATURAMENTO REFERENTE AO DIA | B1: 2017-05-03 | C1: Previsto | F1: Saldo do dia anterios | H1: ='3'!J31 -> 0 | I1: FATURAMENTO REAL | K1: =B1+1 -> 2017-05-04 | M1: Dinheiro em Conta | N1: 2425.97
A2: Contas Previstas para pagamento | C2: Saldo Anterior | D2: ='3'!D31 -> 0 | E2: Tipo de Custo | F2: Contas Pagas - Real | M2: Notas Grandes | N2: =400+500+1000 -> 1900
A3: Fornecedor | B3: Vencimento | C3: Valor | D3: =SUM(D1:D2) -> 0 | F3: Fornecedor | G3: Vencimento | H3: Valor | I3: Forma de pagamento | J3: - | M3: Dinheiro trocado | N3: =460+260+75+188+192 -> 1175
D4: =D3-C4 -> 0 | J4: =J1-H4 -> 0 | M4: Cheques | N4: 106.52
D5: =D4-C5 -> 0 | J5: =J4-H5 -> 0 | M5: Total | N5: =SUM(N1:N4) -> 5607.49
D6: 0 | J6: 0
D7: 0 | J7: 0
D8: 0 | J8: 0 | M8: Tipo de Custos | N8: Cód | O8: Total dia
D9: 0 | J9: 0 | M9: =' Fechamento Mensal '!$A$13 -> Matéria-Prima | N9: =' Fechamento Mensal '!$B$13 -> MP | O9: =SUMIF($E$4:$E$31,N9,H4:H31) -> 0
D10: 0 | J10: 0 | M10: =' Fechamento Mensal '!$A$14 -> Operacional | N10: =' Fechamento Mensal '!$B$14 -> Op | O10: =SUMIF($E$4:$E$31,N10,$H$4:$H$31) -> 0
D11: 0 | J11: 0 | M11: =' Fechamento Mensal '!$A$15 -> Despesas Fixas | N11: =' Fechamento Mensal '!$B$15 -> Fx | O11: =SUMIF($E$4:$E$31,N11,$H$4:$H$31) -> 0
D12: 0 | J12: 0 | M12: =' Fechamento Mensal '!$A$16 -> Variáveis | N12: =' Fechamento Mensal '!$B$16 -> Va | O12: 0
D13: 0 | J13: 0 | M13: =' Fechamento Mensal '!$A$17 -> Financeiras (taxas e juros) | N13: =' Fechamento Mensal '!$B$17 -> Tx | O13: 0
D14: 0 | J14: 0 | M14: =' Fechamento Mensal '!$A$18 -> Pró-labore | N14: =' Fechamento Mensal '!$B$18 -> PL | O14: 0
D15: 0 | J15: 0 | M15: =' Fechamento Mensal '!$A$19 -> Outros | N15: =' Fechamento Mensal '!B19 -> Ou | O15: 0
D16: 0 | J16: 0
D17: 0 | J17: 0
D18: 0 | J18: 0
D19: 0 | J19: 0
D20: 0 | J20: 0
D21: 0 | J21: 0
D22: 0 | J22: 0
D23: 0 | J23: 0
D24: 0 | J24: 0
D25: 0 | J25: 0
D26: 0 | J26: 0
D27: 0 | J27: 0
D28: 0 | J28: 0
D29: 0 | J29: 0
D30: 0 | J30: 0
D31: 0 | J31: 0
A32: Total | C32: =SUM(C4:C31) -> 0 | F32: Total | H32: =SUM(H4:H31) -> 0

Sheet 5
A1: FATURAMENTO REFERENTE AO DIA | B1: 2017-05-04 | C1: Previsto | F1: Saldo do dia anterios | H1: ='4'!J31 -> 0 | I1: FATURAMENTO REAL | K1: =B1+1 -> 2017-05-05 | M1: Dinheiro em Conta | N1: 2620.4
A2: Contas Previstas para pagamento | C2: Saldo Anterior | D2: ='4'!D31 -> 0 | E2: Tipo de Custo | F2: Contas Pagas - Real | M2: Notas Grandes | N2: 600
A3: Fornecedor | B3: Vencimento | C3: Valor | D3: =SUM(D1:D2) -> 0 | F3: Fornecedor | G3: Vencimento | H3: Valor | I3: Forma de pagamento | J3: - | M3: Dinheiro trocado | N3: =250+198+190.25+237.5+120 -> 995.75
D4: =D3-C4 -> 0 | M4: Cheques
D5: =D4-C5 -> 0 | M5: Total | N5: =SUM(N1:N4) -> 4216.15
D6: 0 | J6: =J1-H6 -> 0
D7: 0 | J7: =J6-H7 -> 0
D8: 0 | J8: 0 | M8: Tipo de Custos | N8: Cód | O8: Total dia
D9: 0 | J9: 0 | M9: =' Fechamento Mensal '!$A$13 -> Matéria-Prima | N9: =' Fechamento Mensal '!$B$13 -> MP | O9: =SUMIF($E$4:$E$31,N9,H4:H31) -> 0
D10: 0 | J10: 0 | M10: =' Fechamento Mensal '!$A$14 -> Operacional | N10: =' Fechamento Mensal '!$B$14 -> Op | O10: =SUMIF($E$4:$E$31,N10,$H$4:$H$31) -> 0
D11: 0 | J11: 0 | M11: =' Fechamento Mensal '!$A$15 -> Despesas Fixas | N11: =' Fechamento Mensal '!$B$15 -> Fx | O11: =SUMIF($E$4:$E$31,N11,$H$4:$H$31) -> 0
D12: 0 | J12: 0 | M12: =' Fechamento Mensal '!$A$16 -> Variáveis | N12: =' Fechamento Mensal '!$B$16 -> Va | O12: 0
D13: 0 | J13: 0 | M13: =' Fechamento Mensal '!$A$17 -> Financeiras (taxas e juros) | N13: =' Fechamento Mensal '!$B$17 -> Tx | O13: 0
D14: 0 | J14: 0 | M14: =' Fechamento Mensal '!$A$18 -> Pró-labore | N14: =' Fechamento Mensal '!$B$18 -> PL | O14: 0
D15: 0 | J15: 0 | M15: =' Fechamento Mensal '!$A$19 -> Outros | N15: =' Fechamento Mensal '!B19 -> Ou | O15: 0
D16: 0 | J16: 0
D17: 0 | J17: 0
D18: 0 | J18: 0
D19: 0 | J19: 0
D20: 0 | J20: 0
D21: 0 | J21: 0
D22: 0 | J22: 0
D23: 0 | J23: 0
D24: 0 | J24: 0
D25: 0 | J25: 0
D26: 0 | J26: 0
D27: 0 | J27: 0
D28: 0 | J28: 0
D29: 0 | J29: 0
D30: 0 | J30: 0
D31: 0 | J31: 0
A32: Total | C32: =SUM(C4:C31) -> 0 | F32: Total | H32: =SUM(H4:H31) -> 0

Sheet 6
A1: FATURAMENTO REFERENTE AO DIA | B1: 2017-05-05 | C1: Previsto | F1: Saldo do dia anterios | H1: ='5'!J31 -> 0 | I1: FATURAMENTO REAL | K1: =B1+1 -> 2017-05-06 | M1: Dinheiro em Conta
A2: Contas Previstas para pagamento | C2: Saldo Anterior | D2: ='5'!D31 -> 0 | E2: Tipo de Custo | F2: Contas Pagas - Real | M2: Notas Grandes
A3: Fornecedor | B3: Vencimento | C3: Valor | D3: =SUM(D1:D2) -> 0 | F3: Fornecedor | G3: Vencimento | H3: Valor | I3: Forma de pagamento | J3: - | M3: Dinheiro trocado
D4: =D3-C4 -> 0 | J4: =J1-H4 -> 0 | M4: Cheques
D5: =D4-C5 -> 0 | J5: =J4-H5 -> 0 | M5: Total | N5: =SUM(N1:N4) -> 0
D6: 0 | J6: 0
D7: 0 | J7: 0
D8: 0 | J8: 0 | M8: Tipo de Custos | N8: Cód | O8: Total dia
D9: 0 | J9: 0 | M9: =' Fechamento Mensal '!$A$13 -> Matéria-Prima | N9: =' Fechamento Mensal '!$B$13 -> MP | O9: =SUMIF($E$4:$E$31,N9,H4:H31) -> 0
D10: 0 | J10: 0 | M10: =' Fechamento Mensal '!$A$14 -> Operacional | N10: =' Fechamento Mensal '!$B$14 -> Op | O10: =SUMIF($E$4:$E$31,N10,$H$4:$H$31) -> 0
D11: 0 | J11: 0 | M11: =' Fechamento Mensal '!$A$15 -> Despesas Fixas | N11: =' Fechamento Mensal '!$B$15 -> Fx | O11: =SUMIF($E$4:$E$31,N11,$H$4:$H$31) -> 0
D12: 0 | J12: 0 | M12: =' Fechamento Mensal '!$A$16 -> Variáveis | N12: =' Fechamento Mensal '!$B$16 -> Va | O12: 0
D13: 0 | J13: 0 | M13: =' Fechamento Mensal '!$A$17 -> Financeiras (taxas e juros) | N13: =' Fechamento Mensal '!$B$17 -> Tx | O13: 0
D14: 0 | J14: 0 | M14: =' Fechamento Mensal '!$A$18 -> Pró-labore | N14: =' Fechamento Mensal '!$B$18 -> PL | O14: 0
D15: 0 | J15: 0 | M15: =' Fechamento Mensal '!$A$19 -> Outros | N15: =' Fechamento Mensal '!B19 -> Ou | O15: 0
D16: 0 | J16: 0
D17: 0 | J17: 0
D18: 0 | J18: 0
D19: 0 | J19: 0
D20: 0 | J20: 0
D21: 0 | J21: 0
D22: 0 | J22: 0
D23: 0 | J23: 0
D24: 0 | J24: 0
D25: 0 | J25: 0
D26: 0 | J26: 0
D27: 0 | J27: 0
D28: 0 | J28: 0
D29: 0 | J29: 0
D30: 0 | J30: 0
D31: 0 | J31: 0
A32: Total | C32: =SUM(C4:C31) -> 0 | F32: Total | H32: =SUM(H4:H31) -> 0

Sheet 7
A1: FATURAMENTO REFERENTE AO DIA | B1: 2017-05-06 | C1: Previsto | F1: Saldo do dia anterios | H1: ='6'!J31 -> 0 | I1: FATURAMENTO REAL | K1: =B1+1 -> 2017-05-07 | M1: Dinheiro em Conta
A2: Contas Previstas para pagamento | C2: Saldo Anterior | D2: ='6'!D31 -> 0 | E2: Tipo de Custo | F2: Contas Pagas - Real | M2: Notas Grandes
A3: Fornecedor | B3: Vencimento | C3: Valor | D3: =SUM(D1:D2) -> 0 | F3: Fornecedor | G3: Vencimento | H3: Valor | I3: Forma de pagamento | J3: - | M3: Dinheiro trocado
D4: =D3-C4 -> 0 | J4: =J1-H4 -> 0 | M4: Cheques
D5: =D4-C5 -> 0 | J5: =J4-H5 -> 0 | M5: Total | N5: =SUM(N1:N4) -> 0
D6: 0 | J6: 0
D7: 0 | J7: 0
D8: 0 | J8: 0 | M8: Tipo de Custos | N8: Cód | O8: Total dia
D9: 0 | J9: 0 | M9: =' Fechamento Mensal '!$A$13 -> Matéria-Prima | N9: =' Fechamento Mensal '!$B$13 -> MP | O9: =SUMIF($E$4:$E$31,N9,H4:H31) -> 0
D10: 0 | J10: 0 | M10: =' Fechamento Mensal '!$A$14 -> Operacional | N10: =' Fechamento Mensal '!$B$14 -> Op | O10: =SUMIF($E$4:$E$31,N10,$H$4:$H$31) -> 0
D11: 0 | J11: 0 | M11: =' Fechamento Mensal '!$A$15 -> Despesas Fixas | N11: =' Fechamento Mensal '!$B$15 -> Fx | O11: =SUMIF($E$4:$E$31,N11,$H$4:$H$31) -> 0
D12: 0 | J12: 0 | M12: =' Fechamento Mensal '!$A$16 -> Variáveis | N12: =' Fechamento Mensal '!$B$16 -> Va | O12: 0
D13: 0 | J13: 0 | M13: =' Fechamento Mensal '!$A$17 -> Financeiras (taxas e juros) | N13: =' Fechamento Mensal '!$B$17 -> Tx | O13: 0
D14: 0 | J14: 0 | M14: =' Fechamento Mensal '!$A$18 -> Pró-labore | N14: =' Fechamento Mensal '!$B$18 -> PL | O14: 0
D15: 0 | J15: 0 | M15: =' Fechamento Mensal '!$A$19 -> Outros | N15: =' Fechamento Mensal '!B19 -> Ou | O15: 0
D16: 0 | J16: 0
D17: 0 | J17: 0
D18: 0 | J18: 0
D19: 0 | J19: 0
D20: 0 | J20: 0
D21: 0 | J21: 0
D22: 0 | J22: 0
D23: 0 | J23: 0
D24: 0 | J24: 0
D25: 0 | J25: 0
D26: 0 | J26: 0
D27: 0 | J27: 0
D28: 0 | J28: 0
D29: 0 | J29: 0
D30: 0 | J30: 0
D31: 0 | J31: 0
A32: Total | C32: =SUM(C4:C31) -> 0 | F32: Total | H32: =SUM(H4:H31) -> 0

Sheet Fechamento semanal1
A1: Balancete Da Semana, 01 a 07 Maio | F1: DRE Parcial Dias 01 a 07 de maio
A2: Faturamento Previsto | B2: Faturamento Real | C2: Resultado | D2: Percentual
A3: ='1'!D1+'2'!D1+'3'!D1+'4'!D1+'5'!D1+'6'!D1+'7'!D1 -> 0 | B3: ='1'!J1+'2'!J1+'3'!J1+'4'!J1+'5'!J1+'6'!J1+'7'!J1 -> 0 | C3: =B3-A3 -> 0 | D3: =B3/A3 ->  | F3: FATURAMENTO | H3: =SUM(G4:G10) -> 0
D4: =D3-C4 ->  | F4: 1 | G4: ='1'!J1 -> 0
A5: Pagamento Previstos | B5: Pagamento Realizados | C5: Resultado | D5: Percetual | F5: 2 | G5: ='2'!J1 -> 0
A6: ='1'!C32+'2'!C32+'3'!C32+'4'!C32+'5'!C32+'6'!C32+'7'!C32 -> 0 | B6: ='1'!H32+'2'!H32+'3'!H32+'4'!H32+'5'!H32+'6'!H32+'7'!H32 -> 0 | C6: =B6-A6 -> 0 | D6: =B6/A6 ->  | F6: 3 | G6: ='3'!J1 -> 0
F7: 4 | G7: ='4'!J1 -> 0
A8: Credito/Debito Acumulado Previsto | B8: =A3-A6 -> 0 | F8: 5 | G8: ='5'!J1 -> 0
A9: Credito/Debito Acumulado Real | B9: =B3-B6 -> 0 | F9: 6 | G9: ='6'!J1 -> 0
F10: 7 | G10: ='7'!J1 -> 0
F12: =K41 -> Matéria-Prima | H12: =SUM(G13:G19) -> 0 | J12: =K42 -> Operacional | L12: =SUM(K13:K19) -> 0
F13: 1 | G13: ='1'!$O$9 -> 0 | J13: 1 | K13: ='1'!$O$10 -> 0
F14: 2 | G14: ='2'!$O$9 -> 0 | J14: 2 | K14: ='2'!$O$10 -> 0
F15: 3 | G15: ='3'!$O$9 -> 0 | J15: 3 | K15: ='3'!$O$10 -> 0
F16: 4 | G16: ='4'!$O$9 -> 0 | J16: 4 | K16: ='4'!$O$10 -> 0
F17: 5 | G17: ='5'!$O$9 -> 0 | J17: 5 | K17: ='5'!$O$10 -> 0
F18: 6 | G18: ='6'!$O$9 -> 0 | J18: 6 | K18: ='6'!$O$10 -> 0
F19: 7 | G19: ='7'!$O$9 -> 0 | J19: 7 | K19: ='7'!$O$10 -> 0
F21: =K43 -> Despesas Fixas | H21: =SUM(G22:G28) -> 0 | J21: =K43 -> Despesas Fixas | L21: =SUM(K22:K28) -> 0
F22: 1 | G22: ='1'!$O$11 -> 0 | J22: 1 | K22: ='1'!$O$12 -> 0
F23: 2 | G23: ='2'!$O$11 -> 0 | J23: 2 | K23: ='2'!$O$12 -> 0
F24: 3 | G24: ='3'!$O$11 -> 0 | J24: 3 | K24: ='3'!$O$12 -> 0
F25: 4 | G25: ='4'!$O$11 -> 0 | J25: 4 | K25: ='4'!$O$12 -> 0
F26: 5 | G26: ='5'!$O$11 -> 0 | J26: 5 | K26: ='5'!$O$12 -> 0
F27: 6 | G27: ='6'!$O$11 -> 0 | J27: 6 | K27: ='6'!$O$12 -> 0
F28: 7 | G28: ='7'!$O$11 -> 0 | J28: 7 | K28: ='7'!$O$12 -> 0
F30: =K45 -> Financeiras (taxas e juros) | H30: =SUM(G31:G37) -> 0 | J30: =K46 -> Pró-labore | L30: =SUM(K31:K37) -> 0
F31: 1 | G31: ='1'!$O$13 -> 0 | J31: 1 | K31: ='1'!$O$14 -> 0
F32: 2 | G32: ='2'!$O$13 -> 0 | J32: 2 | K32: ='2'!$O$14 -> 0
F33: 3 | G33: ='3'!$O$13 -> 0 | J33: 3 | K33: ='3'!$O$14 -> 0
F34: 4 | G34: ='4'!$O$13 -> 0 | J34: 4 | K34: ='4'!$O$14 -> 0
F35: 5 | G35: ='5'!$O$13 -> 0 | J35: 5 | K35: ='5'!$O$14 -> 0
F36: 6 | G36: ='6'!$O$13 -> 0 | J36: 6 | K36: ='6'!$O$14 -> 0
F37: 7 | G37: ='7'!$O$13 -> 0 | J37: 7 | K37: ='7'!$O$14 -> 0
F39: =K47 -> Outros | H39: =SUM(G40:G46) -> 0 | J39: RESUMO DA SEMANA
F40: 1 | G40: ='1'!$O$15 -> 0 | J40: (+) | K40: FATURAMENTO | L40: =H3 -> 0
F41: 2 | G41: ='2'!$O$15 -> 0 | J41: (-) | K41: =' Fechamento Mensal '!$A$13 -> Matéria-Prima | L41: =H12 -> 0
F42: 3 | G42: ='3'!$O$15 -> 0 | J42: (-) | K42: =' Fechamento Mensal '!$A$14 -> Operacional | L42: =L12 -> 0
F43: 4 | G43: ='4'!$O$15 -> 0 | J43: (-) | K43: =' Fechamento Mensal '!$A$15 -> Despesas Fixas | L43: =H21 -> 0
F44: 5 | G44: ='5'!$O$15 -> 0 | J44: (-) | K44: =' Fechamento Mensal '!$A$16 -> Variáveis | L44: =L21 -> 0
F45: 6 | G45: ='6'!$O$15 -> 0 | J45: (-) | K45: =' Fechamento Mensal '!$A$17 -> Financeiras (taxas e juros) | L45: =H30 -> 0
F46: 7 | G46: ='7'!$O$15 -> 0 | J46: (-) | K46: =' Fechamento Mensal '!$A$18 -> Pró-labore | L46: =L30 -> 0
J47: (-) | K47: =' Fechamento Mensal '!$A$19 -> Outros | L47: =H39 -> 0
J48: (=) | K48: RESULT SEMANA | L48: =L40-SUM(L41:L47) -> 0

Sheet 8
A1: FATURAMENTO REFERENTE AO DIA | B1: 2017-05-07 | C1: Previsto | F1: z | H1: ='7'!J31 -> 0 | I1: FATURAMENTO REAL | K1: =B1+1 -> 2017-05-08 | M1: Dinheiro em Conta | N1: =13534.27+2672 -> 16206.27
A2: Contas Previstas para pagamento | C2: Saldo Anterior | E2: Tipo de Custo | F2: Contas Pagas - Real | M2: Notas Grandes | N2: =1800+2750 -> 4550
A3: Fornecedor | B3: Vencimento | C3: Valor | D3: =SUM(D1:D2) -> 0 | F3: Fornecedor | G3: Vencimento | H3: Valor | I3: Forma de pagamento | J3: - | M3: Dinheiro trocado | N3: =640+460+115+190+142.35 -> 1547.35
D4: =D3-C4 -> 0 | M4: Dinheiro Guardado
D5: =D4-C5 -> 0 | M5: Total | N5: =SUM(N1:N4) -> 22303.62
D6: 0 | J6: =J1-H6 -> 0
D7: 0 | J7: =J6-H7 -> 0
D8: 0 | J8: 0 | M8: Tipo de Custos | N8: Cód | O8: Total dia
D9: 0 | J9: 0 | M9: =' Fechamento Mensal '!$A$13 -> Matéria-Prima | N9: =' Fechamento Mensal '!$B$13 -> MP | O9: =SUMIF($E$4:$E$31,N9,H4:H31) -> 0
D10: 0 | J10: 0 | M10: =' Fechamento Mensal '!$A$14 -> Operacional | N10: =' Fechamento Mensal '!$B$14 -> Op | O10: =SUMIF($E$4:$E$31,N10,$H$4:$H$31) -> 0
D11: 0 | J11: 0 | M11: =' Fechamento Mensal '!$A$15 -> Despesas Fixas | N11: =' Fechamento Mensal '!$B$15 -> Fx | O11: =SUMIF($E$4:$E$31,N11,$H$4:$H$31) -> 0
D12: 0 | J12: 0 | M12: =' Fechamento Mensal '!$A$16 -> Variáveis | N12: =' Fechamento Mensal '!$B$16 -> Va | O12: 0
D13: 0 | J13: 0 | M13: =' Fechamento Mensal '!$A$17 -> Financeiras (taxas e juros) | N13: =' Fechamento Mensal '!$B$17 -> Tx | O13: 0
D14: 0 | J14: 0 | M14: =' Fechamento Mensal '!$A$18 -> Pró-labore | N14: =' Fechamento Mensal '!$B$18 -> PL | O14: 0
D15: 0 | J15: 0 | M15: =' Fechamento Mensal '!$A$19 -> Outros | N15: =' Fechamento Mensal '!B19 -> Ou | O15: 0
D16: 0 | J16: 0
D17: 0 | J17: 0
D18: 0 | J18: 0
D19: 0 | J19: 0
D20: 0 | J20: 0
D21: 0 | J21: 0
D22: 0 | J22: 0
D23: 0 | J23: 0
D24: 0 | J24: 0
D25: 0 | J25: 0
D26: 0 | J26: 0
D27: 0 | J27: 0
D28: 0 | J28: 0
D29: 0 | J29: 0
D30: 0 | J30: 0
D31: 0 | J31: 0
A32: Total | C32: =SUM(C4:C31) -> 0 | F32: Total | H32: =SUM(H4:H31) -> 0

Sheet 9
A1: FATURAMENTO REFERENTE AO DIA | B1: 2017-05-08 | C1: Previsto | F1: Saldo do dia anterios | H1: ='8'!J31 -> 0 | I1: FATURAMENTO REAL | K1: =B1+1 -> 2017-05-09 | M1: Dinheiro em Conta | N1: 2078.52
A2: Contas Previstas para pagamento | C2: Saldo Anterior | D2: ='8'!D31 -> 0 | E2: Tipo de Custo | F2: Contas Pagas - Real | M2: Notas Grandes | N2: =300+900 -> 1200
A3: Fornecedor | B3: Vencimento | C3: Valor | D3: =SUM(D1:D2) -> 0 | F3: Fornecedor | G3: Vencimento | H3: Valor | I3: Forma de pagamento | J3: - | M3: Dinheiro trocado | N3: =160+800+25+110+103.5 -> 1198.5
D4: =D3-C4 -> 0 | J4: =J1-H4 -> 0 | M4: Cheques
D5: =D4-C5 -> 0 | J5: =J4-H5 -> 0 | M5: Total | N5: =SUM(N1:N4) -> 4477.02
D6: 0 | J6: 0
D7: 0 | J7: 0
D8: 0 | J8: 0 | M8: Tipo de Custos | N8: Cód | O8: Total dia
D9: 0 | J9: 0 | M9: =' Fechamento Mensal '!$A$13 -> Matéria-Prima | N9: =' Fechamento Mensal '!$B$13 -> MP | O9: =SUMIF($E$4:$E$31,N9,H4:H31) -> 0
D10: 0 | J10: 0 | M10: =' Fechamento Mensal '!$A$14 -> Operacional | N10: =' Fechamento Mensal '!$B$14 -> Op | O10: =SUMIF($E$4:$E$31,N10,$H$4:$H$31) -> 0
D11: 0 | J11: 0 | M11: =' Fechamento Mensal '!$A$15 -> Despesas Fixas | N11: =' Fechamento Mensal '!$B$15 -> Fx | O11: =SUMIF($E$4:$E$31,N11,$H$4:$H$31) -> 0
D12: 0 | J12: 0 | M12: =' Fechamento Mensal '!$A$16 -> Variáveis | N12: =' Fechamento Mensal '!$B$16 -> Va | O12: 0
D13: 0 | J13: 0 | M13: =' Fechamento Mensal '!$A$17 -> Financeiras (taxas e juros) | N13: =' Fechamento Mensal '!$B$17 -> Tx | O13: 0
D14: 0 | J14: 0 | M14: =' Fechamento Mensal '!$A$18 -> Pró-labore | N14: =' Fechamento Mensal '!$B$18 -> PL | O14: 0
D15: 0 | J15: 0 | M15: =' Fechamento Mensal '!$A$19 -> Outros | N15: =' Fechamento Mensal '!B19 -> Ou | O15: 0
D16: 0 | J16: 0
D17: 0 | J17: 0
D18: 0 | J18: 0
D19: 0 | J19: 0
D20: 0 | J20: 0
D21: 0 | J21: 0
D22: 0 | J22: 0
D23: 0 | J23: 0
D24: 0 | J24: 0
D25: 0 | J25: 0
D26: 0 | J26: 0
D27: 0 | J27: 0
D28: 0 | J28: 0
D29: 0 | J29: 0
D30: 0 | J30: 0
D31: 0 | J31: 0
A32: Total | C32: =SUM(C4:C31) -> 0 | F32: Total | H32: =SUM(H4:H31) -> 0

Sheet 10
A1: FATURAMENTO REFERENTE AO DIA | B1: 2017-05-09 | C1: Previsto | F1: Saldo do dia anterios | H1: ='9'!J31 -> 0 | I1: FATURAMENTO REAL | K1: =B1+1 -> 2017-05-10 | M1: Dinheiro em Conta
A2: Contas Previstas para pagamento | C2: Saldo Anterior | D2: ='9'!D31 -> 0 | E2: Tipo de Custo | F2: Contas Pagas - Real | M2: Notas Grandes | N2: =300+950 -> 1250
A3: Fornecedor | B3: Vencimento | C3: Valor | D3: =SUM(D1:D2) -> 0 | F3: Fornecedor | G3: Vencimento | H3: Valor | I3: Forma de pagamento | J3: - | M3: Dinheiro trocado | N3: =200+240+45+92+189.15 -> 766.15
D4: =D3-C4 -> 0 | M4: Cheques
D5: =D4-C5 -> 0 | M5: Total | N5: =SUM(N1:N4) -> 2016.15
D6: 0
D7: 0 | J7: =J1-H7 -> 0
D8: 0 | J8: =J7-H8 -> 0 | M8: Tipo de Custos | N8: Cód | O8: Total dia
D9: 0 | J9: 0 | M9: =' Fechamento Mensal '!$A$13 -> Matéria-Prima | N9: =' Fechamento Mensal '!$B$13 -> MP | O9: =SUMIF($E$4:$E$31,N9,H4:H31) -> 0
D10: 0 | J10: 0 | M10: =' Fechamento Mensal '!$A$14 -> Operacional | N10: =' Fechamento Mensal '!$B$14 -> Op | O10: =SUMIF($E$4:$E$31,N10,$H$4:$H$31) -> 0
D11: 0 | J11: 0 | M11: =' Fechamento Mensal '!$A$15 -> Despesas Fixas | N11: =' Fechamento Mensal '!$B$15 -> Fx | O11: =SUMIF($E$4:$E$31,N11,$H$4:$H$31) -> 0
D12: 0 | J12: 0 | M12: =' Fechamento Mensal '!$A$16 -> Variáveis | N12: =' Fechamento Mensal '!$B$16 -> Va | O12: 0
D13: 0 | J13: 0 | M13: =' Fechamento Mensal '!$A$17 -> Financeiras (taxas e juros) | N13: =' Fechamento Mensal '!$B$17 -> Tx | O13: 0
D14: 0 | J14: 0 | M14: =' Fechamento Mensal '!$A$18 -> Pró-labore | N14: =' Fechamento Mensal '!$B$18 -> PL | O14: 0
D15: 0 | J15: 0 | M15: =' Fechamento Mensal '!$A$19 -> Outros | N15: =' Fechamento Mensal '!B19 -> Ou | O15: 0
D16: 0 | J16: 0
D17: 0 | J17: 0
D18: 0 | J18: 0
D19: 0 | J19: 0
D20: 0 | J20: 0
D21: 0 | J21: 0
D22: 0 | J22: 0
D23: 0 | J23: 0
D24: 0 | J24: 0
D25: 0 | J25: 0
D26: 0 | J26: 0
D27: 0 | J27: 0
D28: 0 | J28: 0
D29: 0 | J29: 0
D30: 0 | J30: 0
D31: 0 | J31: 0
A32: Total | C32: =SUM(C4:C31) -> 0 | F32: Total | H32: =SUM(H4:H31) -> 0

Sheet 11
A1: FATURAMENTO REFERENTE AO DIA | B1: 2017-05-10 | C1: Previsto | F1: Saldo do dia anterios | H1: ='10'!J31 -> 0 | I1: FATURAMENTO REAL | K1: =B1+1 -> 2017-05-11 | M1: Dinheiro em Conta | N1: 3244.42
A2: Contas Previstas para pagamento | C2: Saldo Anterior | D2: ='10'!D31 -> 0 | E2: Tipo de Custo | F2: Contas Pagas - Real | M2: Notas Grandes | N2: =700+1150 -> 1850
A3: Fornecedor | B3: Vencimento | C3: Valor | D3: =SUM(D1:D2) -> 0 | F3: Fornecedor | G3: Vencimento | H3: Valor | I3: Forma de pagamento | J3: - | M3: Dinheiro trocado | N3: =40+290+135+124+168.65 -> 757.65
D4: =D3-C4 -> 0 | J4: =J1-H4 -> 0 | M4: Cheques
D5: =D4-C5 -> 0 | J5: =J4-H5 -> 0 | M5: Total | N5: =SUM(N1:N4) -> 5852.07
D6: =D5-C6 -> 0 | J6: =J5-H6 -> 0
D7: 0 | J7: 0
D8: 0 | J8: 0 | M8: Tipo de Custos | N8: Cód | O8: Total dia
D9: 0 | J9: 0 | M9: =' Fechamento Mensal '!$A$13 -> Matéria-Prima | N9: =' Fechamento Mensal '!$B$13 -> MP | O9: =SUMIF($E$4:$E$31,N9,H4:H31) -> 0
D10: 0 | J10: 0 | M10: =' Fechamento Mensal '!$A$14 -> Operacional | N10: =' Fechamento Mensal '!$B$14 -> Op | O10: =SUMIF($E$4:$E$31,N10,$H$4:$H$31) -> 0
D11: 0 | J11: 0 | M11: =' Fechamento Mensal '!$A$15 -> Despesas Fixas | N11: =' Fechamento Mensal '!$B$15 -> Fx | O11: =SUMIF($E$4:$E$31,N11,$H$4:$H$31) -> 0
D12: 0 | J12: 0 | M12: =' Fechamento Mensal '!$A$16 -> Variáveis | N12: =' Fechamento Mensal '!$B$16 -> Va | O12: 0
D13: 0 | J13: 0 | M13: =' Fechamento Mensal '!$A$17 -> Financeiras (taxas e juros) | N13: =' Fechamento Mensal '!$B$17 -> Tx | O13: 0
D14: 0 | J14: 0 | M14: =' Fechamento Mensal '!$A$18 -> Pró-labore | N14: =' Fechamento Mensal '!$B$18 -> PL | O14: 0
D15: 0 | J15: 0 | M15: =' Fechamento Mensal '!$A$19 -> Outros | N15: =' Fechamento Mensal '!B19 -> Ou | O15: 0
D16: 0 | J16: 0
D17: 0 | J17: 0
D18: 0 | J18: 0
D19: 0 | J19: 0
D20: 0 | J20: 0
D21: 0 | J21: 0
D22: 0 | J22: 0
D23: 0 | J23: 0
D24: 0 | J24: 0
D25: 0 | J25: 0
D26: 0 | J26: 0
D27: 0 | J27: 0
D28: 0 | J28: 0
D29: 0 | J29: 0
D30: 0 | J30: 0
D31: 0 | J31: 0
A32: Total | C32: =SUM(C4:C31) -> 0 | F32: Total | H32: =SUM(H4:H31) -> 0

Sheet 12
A1: FATURAMENTO REFERENTE AO DIA | B1: 2017-05-10 | C1: Previsto | F1: Saldo do dia anterios | H1: ='10'!J31 -> 0 | I1: FATURAMENTO REAL | K1: =B1+1 -> 2017-05-11 | L1: Saldo do dinheiro: R$ 2.605,15 / Cartão: 3278 | M1: Dinheiro em Conta
A2: Contas Previstas para pagamento | C2: Saldo Anterior | D2: ='10'!D31 -> 0 | E2: Tipo de Custo | F2: Contas Pagas - Real | M2: Notas Grandes
A3: Fornecedor | B3: Vencimento | C3: Valor | D3: =SUM(D1:D2) -> 0 | F3: Fornecedor | G3: Vencimento | H3: Valor | I3: Forma de pagamento | J3: - | L3: DINHEIRO | M3: Dinheiro trocado
D4: =D3-C4 -> 0 | J4: =J1-H4 -> 0 | M4: Cheques
D5: =D4-C5 -> 0 | J5: =J4-H5 -> 0 | M5: Total | N5: =SUM(N1:N4) -> 0
D6: =D5-C6 -> 0 | J6: =J5-H6 -> 0
D7: 0 | J7: 0
D8: 0 | J8: 0 | M8: Tipo de Custos | N8: Cód | O8: Total dia
D9: 0 | J9: 0 | M9: =' Fechamento Mensal '!$A$13 -> Matéria-Prima | N9: =' Fechamento Mensal '!$B$13 -> MP | O9: =SUMIF($E$4:$E$29,N9,H4:H29) -> 0
D10: 0 | J10: 0 | M10: =' Fechamento Mensal '!$A$14 -> Operacional | N10: =' Fechamento Mensal '!$B$14 -> Op | O10: =SUMIF($E$4:$E$29,N10,$H$4:$H$29) -> 0
D11: 0 | J11: 0 | M11: =' Fechamento Mensal '!$A$15 -> Despesas Fixas | N11: =' Fechamento Mensal '!$B$15 -> Fx | O11: 0
D12: 0 | J12: 0 | L12: CONTA | M12: =' Fechamento Mensal '!$A$16 -> Variáveis | N12: =' Fechamento Mensal '!$B$16 -> Va | O12: 0
D13: 0 | J13: 0 | M13: =' Fechamento Mensal '!$A$17 -> Financeiras (taxas e juros) | N13: =' Fechamento Mensal '!$B$17 -> Tx | O13: 0
D14: 0 | J14: 0 | M14: =' Fechamento Mensal '!$A$18 -> Pró-labore | N14: =' Fechamento Mensal '!$B$18 -> PL | O14: 0
D15: 0 | J15: 0 | M15: =' Fechamento Mensal '!$A$19 -> Outros | N15: =' Fechamento Mensal '!B19 -> Ou | O15: 0
D16: 0 | J16: 0
D17: 0 | J17: 0
D18: 0 | J18: 0
D19: 0 | J19: 0
D20: 0 | J20: 0
D21: 0 | J21: 0
D22: 0 | J22: 0
D23: 0 | J23: 0
D24: 0 | J24: 0
D25: 0 | J25: 0
D26: 0 | J26: 0
D27: 0 | J27: 0
D28: 0 | J28: 0
D29: 0 | J29: 0
D30: 0 | J30: 0
D31: 0 | J31: 0
A32: Total | C32: =SUM(C4:C31) -> 0 | F32: Total | H32: =SUM(H4:H31) -> 0

Sheet 13
A1: FATURAMENTO REFERENTE AO DIA | B1: 2017-05-10 | C1: Previsto | F1: Saldo do dia anterios | H1: ='10'!J31 -> 0 | I1: FATURAMENTO REAL | K1: =B1+1 -> 2017-05-11 | L1: Saldo do dinheiro: R$ 2.605,15 / Cartão: 3278 | M1: Dinheiro em Conta
A2: Contas Previstas para pagamento | C2: Saldo Anterior | D2: ='10'!D31 -> 0 | E2: Tipo de Custo | F2: Contas Pagas - Real | M2: Notas Grandes
A3: Fornecedor | B3: Vencimento | C3: Valor | D3: =SUM(D1:D2) -> 0 | F3: Fornecedor | G3: Vencimento | H3: Valor | I3: Forma de pagamento | J3: - | L3: DINHEIRO | M3: Dinheiro trocado
D4: =D3-C4 -> 0 | J4: =J1-H4 -> 0 | M4: Cheques
D5: =D4-C5 -> 0 | J5: =J4-H5 -> 0 | M5: Total | N5: =SUM(N1:N4) -> 0
D6: =D5-C6 -> 0 | J6: =J5-H6 -> 0
D7: 0 | J7: 0
D8: 0 | J8: 0 | M8: Tipo de Custos | N8: Cód | O8: Total dia
D9: 0 | J9: 0 | M9: =' Fechamento Mensal '!$A$13 -> Matéria-Prima | N9: =' Fechamento Mensal '!$B$13 -> MP | O9: =SUMIF($E$4:$E$29,N9,H4:H29) -> 0
D10: 0 | J10: 0 | M10: =' Fechamento Mensal '!$A$14 -> Operacional | N10: =' Fechamento Mensal '!$B$14 -> Op | O10: =SUMIF($E$4:$E$29,N10,$H$4:$H$29) -> 0
D11: 0 | J11: 0 | M11: =' Fechamento Mensal '!$A$15 -> Despesas Fixas | N11: =' Fechamento Mensal '!$B$15 -> Fx | O11: 0
D12: 0 | J12: 0 | L12: CONTA | M12: =' Fechamento Mensal '!$A$16 -> Variáveis | N12: =' Fechamento Mensal '!$B$16 -> Va | O12: 0
D13: 0 | J13: 0 | M13: =' Fechamento Mensal '!$A$17 -> Financeiras (taxas e juros) | N13: =' Fechamento Mensal '!$B$17 -> Tx | O13: 0
D14: 0 | J14: 0 | M14: =' Fechamento Mensal '!$A$18 -> Pró-labore | N14: =' Fechamento Mensal '!$B$18 -> PL | O14: 0
D15: 0 | J15: 0 | M15: =' Fechamento Mensal '!$A$19 -> Outros | N15: =' Fechamento Mensal '!B19 -> Ou | O15: 0
D16: 0 | J16: 0
D17: 0 | J17: 0
D18: 0 | J18: 0
D19: 0 | J19: 0
D20: 0 | J20: 0
D21: 0 | J21: 0
D22: 0 | J22: 0
D23: 0 | J23: 0
D24: 0 | J24: 0
D25: 0 | J25: 0
D26: 0 | J26: 0
D27: 0 | J27: 0
D28: 0 | J28: 0
D29: 0 | J29: 0
D30: 0 | J30: 0
D31: 0 | J31: 0
A32: Total | C32: =SUM(C4:C31) -> 0 | F32: Total | H32: =SUM(H4:H31) -> 0

Sheet 14
A1: FATURAMENTO REFERENTE AO DIA | B1: 2017-05-13 | C1: Previsto | F1: Saldo do dia anterios | H1: ='13'!J27 -> 0 | I1: FATURAMENTO REAL | K1: =B1+1 -> 2017-05-14 | M1: Dinheiro em Conta
A2: Contas Previstas para pagamento | C2: Saldo Anterior | D2: ='13'!D27 -> 0 | E2: Tipo de Custo | F2: Contas Pagas - Real | M2: Notas Grandes
A3: Fornecedor | B3: Vencimento | C3: Valor | D3: =SUM(D1:D2) -> 0 | F3: Fornecedor | G3: Vencimento | H3: Valor | I3: Forma de pagamento | J3: - | M3: Dinheiro trocado
D4: =D3-C4 -> 0 | J4: =J1-H4 -> 0 | M4: Cheques
D5: =D4-C5 -> 0 | J5: =J4-H5 -> 0 | M5: Total | N5: =SUM(N1:N4) -> 0
D6: 0 | J6: 0
D7: 0 | J7: 0
D8: 0 | J8: 0 | M8: Tipo de Custos | N8: Cód | O8: Total dia
D9: 0 | J9: 0 | M9: =' Fechamento Mensal '!$A$13 -> Matéria-Prima | N9: =' Fechamento Mensal '!$B$13 -> MP | O9: =SUMIF($E$4:$E$31,N9,H4:H31) -> 0
D10: 0 | J10: 0 | M10: =' Fechamento Mensal '!$A$14 -> Operacional | N10: =' Fechamento Mensal '!$B$14 -> Op | O10: =SUMIF($E$4:$E$31,N10,$H$4:$H$31) -> 0
D11: 0 | J11: 0 | M11: =' Fechamento Mensal '!$A$15 -> Despesas Fixas | N11: =' Fechamento Mensal '!$B$15 -> Fx | O11: =SUMIF($E$4:$E$31,N11,$H$4:$H$31) -> 0
D12: 0 | J12: 0 | M12: =' Fechamento Mensal '!$A$16 -> Variáveis | N12: =' Fechamento Mensal '!$B$16 -> Va | O12: 0
D13: 0 | J13: 0 | M13: =' Fechamento Mensal '!$A$17 -> Financeiras (taxas e juros) | N13: =' Fechamento Mensal '!$B$17 -> Tx | O13: 0
D14: 0 | J14: 0 | M14: =' Fechamento Mensal '!$A$18 -> Pró-labore | N14: =' Fechamento Mensal '!$B$18 -> PL | O14: 0
D15: 0 | J15: 0 | M15: =' Fechamento Mensal '!$A$19 -> Outros | N15: =' Fechamento Mensal '!B19 -> Ou | O15: 0
D16: 0 | J16: 0
D17: 0 | J17: 0
D18: 0 | J18: 0
D19: 0 | J19: 0
D20: 0 | J20: 0
D21: 0 | J21: 0
D22: 0 | J22: 0
D23: 0 | J23: 0
D24: 0 | J24: 0
D25: 0 | J25: 0
D26: 0 | J26: 0
D27: 0 | J27: 0
D28: 0 | J28: 0
D29: 0 | J29: 0
D30: 0 | J30: 0
D31: 0 | J31: 0
A32: Total | C32: =SUM(C4:C31) -> 0 | F32: Total | H32: =SUM(H4:H31) -> 0

Sheet Fechamento semanal2
A1: Balancete Da Semana, 08 a 14 Maio | F1: DRE Parcial Dias 08 a 14 de maio
A2: Faturamento Previsto | B2: Faturamento Real | C2: Resultado | D2: Percentual
A3: ='8'!D1+'9'!D1+'10'!D1+'11'!D1+'12'!D1+'13'!D1+'14'!D1 -> 0 | B3: ='8'!J1+'9'!J1+'10'!J1+'11'!J1+'12'!J1+'13'!J1+'14'!J1 -> 0 | C3: =B3-A3 -> 0 | D3: =B3/A3 ->  | F3: FATURAMENTO | H3: =SUM(G4:G10) -> 0
D4: =D3-C4 ->  | F4: 8 | G4: ='8'!J1 -> 0
A5: Pagamento Previstos | B5: Pagamento Realizados | C5: Resultado | D5: Percetual | F5: 9 | G5: ='9'!J1 -> 0
A6: ='8'!C32+'9'!C32+'10'!C32+'11'!C32+'12'!C30+'13'!C28+'14'!C32 -> 0 | B6: ='8'!H32+'9'!H32+'10'!H32+'11'!H32+'12'!H27+'13'!H28+'14'!H32 -> 0 | C6: =B6-A6 -> 0 | D6: =B6/A6 ->  | F6: 10 | G6: ='10'!J1 -> 0
F7: 11 | G7: ='11'!J1 -> 0
A8: Credito/Debito Acumulado Previsto | B8: =A3-A6 -> 0 | F8: 12 | G8: ='12'!J1 -> 0
A9: Credito/Debito Acumulado Real | B9: =B3-B6 -> 0 | F9: 13 | G9: ='13'!J1 -> 0
F10: 14 | G10: ='14'!J1 -> 0
F12: =K41 -> Matéria-Prima | H12: =SUM(G13:G19) -> 0 | J12: =K42 -> Operacional | L12: =SUM(K13:K19) -> 0
F13: 8 | G13: ='8'!$O$9 -> 0 | J13: 8 | K13: ='8'!$O$10 -> 0
F14: 9 | G14: ='9'!$O$9 -> 0 | J14: 9 | K14: ='9'!$O$10 -> 0
F15: 10 | G15: ='10'!$O$9 -> 0 | J15: 10 | K15: ='10'!$O$10 -> 0
F16: 11 | G16: ='11'!$O$9 -> 0 | J16: 11 | K16: ='11'!$O$10 -> 0
F17: 12 | G17: ='12'!$O$9 -> 0 | J17: 12 | K17: ='12'!$O$10 -> 0
F18: 13 | G18: ='13'!$O$9 -> 0 | J18: 13 | K18: ='13'!$O$10 -> 0
F19: 14 | G19: ='14'!$O$9 -> 0 | J19: 14 | K19: ='14'!$O$10 -> 0
F21: =K43 -> Despesas Fixas | H21: =SUM(G22:G28) -> 0 | J21: =K44 -> Variáveis | L21: =SUM(K22:K28) -> 0
F22: 8 | G22: ='8'!$O$11 -> 0 | J22: 8 | K22: ='8'!$O$12 -> 0
F23: 9 | G23: ='9'!$O$11 -> 0 | J23: 9 | K23: ='9'!$O$12 -> 0
F24: 10 | G24: ='10'!$O$11 -> 0 | J24: 10 | K24: ='10'!$O$12 -> 0
F25: 11 | G25: ='11'!$O$11 -> 0 | J25: 11 | K25: ='11'!$O$12 -> 0
F26: 12 | G26: ='12'!$O$11 -> 0 | J26: 12 | K26: ='12'!$O$12 -> 0
F27: 13 | G27: ='13'!$O$11 -> 0 | J27: 13 | K27: ='13'!$O$12 -> 0
F28: 14 | G28: ='14'!$O$11 -> 0 | J28: 14 | K28: ='14'!$O$12 -> 0
F30: =K45 -> Financeiras (taxas e juros) | H30: =SUM(G31:G37) -> 0 | J30: =K46 -> Pró-labore | L30: =SUM(K31:K37) -> 0
F31: 8 | G31: ='8'!$O$13 -> 0 | J31: 8 | K31: ='8'!$O$14 -> 0
F32: 9 | G32: ='9'!$O$13 -> 0 | J32: 9 | K32: ='9'!$O$14 -> 0
F33: 10 | G33: ='10'!$O$13 -> 0 | J33: 10 | K33: ='10'!$O$14 -> 0
F34: 11 | G34: ='11'!$O$13 -> 0 | J34: 11 | K34: ='11'!$O$14 -> 0
F35: 12 | G35: ='12'!$O$13 -> 0 | J35: 12 | K35: ='12'!$O$14 -> 0
F36: 13 | G36: ='13'!$O$13 -> 0 | J36: 13 | K36: ='13'!$O$14 -> 0
F37: 14 | G37: ='14'!$O$13 -> 0 | J37: 14 | K37: ='14'!$O$14 -> 0
F39: =K47 -> Outros | H39: =SUM(G40:G46) -> 0 | J39: RESUMO DA SEMANA
F40: 8 | G40: ='8'!$O$15 -> 0 | J40: (+) | K40: FATURAMENTO | L40: =H3 -> 0
F41: 9 | G41: ='9'!$O$15 -> 0 | J41: (-) | K41: =' Fechamento Mensal '!$A$13 -> Matéria-Prima | L41: =H12 -> 0
F42: 10 | G42: ='10'!$O$15 -> 0 | J42: (-) | K42: =' Fechamento Mensal '!$A$14 -> Operacional | L42: =L12 -> 0
F43: 11 | G43: ='11'!$O$15 -> 0 | J43: (-) | K43: =' Fechamento Mensal '!$A$15 -> Despesas Fixas | L43: =H21 -> 0
F44: 12 | G44: ='12'!$O$15 -> 0 | J44: (-) | K44: =' Fechamento Mensal '!$A$16 -> Variáveis | L44: =L21 -> 0
F45: 13 | G45: ='13'!$O$15 -> 0 | J45: (-) | K45: =' Fechamento Mensal '!$A$17 -> Financeiras (taxas e juros) | L45: =H30 -> 0
F46: 14 | G46: ='14'!$O$15 -> 0 | J46: (-) | K46: =' Fechamento Mensal '!$A$18 -> Pró-labore | L46: =L30 -> 0
J47: (-) | K47: =' Fechamento Mensal '!$A$19 -> Outros | L47: =H39 -> 0
J48: (=) | K48: RESULT SEMANA | L48: =L40-SUM(L41:L47) -> 0

Sheet 15
A1: FATURAMENTO REFERENTE AO DIA | B1: 2017-05-14 | C1: Previsto | F1: Saldo do dia anterios | H1: ='14'!J31 -> 0 | I1: FATURAMENTO REAL | K1: =B1+1 -> 2017-05-15 | M1: Dinheiro em Conta
A2: Contas Previstas para pagamento | C2: Saldo Anterior | D2: ='14'!D31 -> 0 | E2: Tipo de Custo | F2: Contas Pagas - Real | M2: Notas Grandes
A3: Fornecedor | B3: Vencimento | C3: Valor | D3: =SUM(D1:D2) -> 0 | F3: Fornecedor | G3: Vencimento | H3: Valor | I3: Forma de pagamento | J3: - | M3: Dinheiro trocado
D4: =D3-C4 -> 0 | J4: =J1-H4 -> 0 | M4: Cheques
D5: =D4-C5 -> 0 | J5: =#REF!-H5 -> 
D6: 0 | J6: =J5-H6 -> 
D7: 0
D8: 0 | M8: Tipo de Custos | N8: Cód | O8: Total dia
D9: 0 | M9: =' Fechamento Mensal '!$A$13 -> Matéria-Prima | N9: =' Fechamento Mensal '!$B$13 -> MP | O9: =SUMIF($E$4:$E$31,N9,H4:H31) -> 0
D10: 0 | M10: =' Fechamento Mensal '!$A$14 -> Operacional | N10: =' Fechamento Mensal '!$B$14 -> Op | O10: =SUMIF($E$4:$E$31,N10,$H$4:$H$31) -> 0
D11: 0 | M11: =' Fechamento Mensal '!$A$15 -> Despesas Fixas | N11: =' Fechamento Mensal '!$B$15 -> Fx | O11: =SUMIF($E$4:$E$31,N11,$H$4:$H$31) -> 0
D12: 0 | M12: =' Fechamento Mensal '!$A$16 -> Variáveis | N12: =' Fechamento Mensal '!$B$16 -> Va | O12: 0
D13: 0 | M13: =' Fechamento Mensal '!$A$17 -> Financeiras (taxas e juros) | N13: =' Fechamento Mensal '!$B$17 -> Tx | O13: 0
D14: 0 | M14: =' Fechamento Mensal '!$A$18 -> Pró-labore | N14: =' Fechamento Mensal '!$B$18 -> PL | O14: 0
D15: 0 | M15: =' Fechamento Mensal '!$A$19 -> Outros | N15: =' Fechamento Mensal '!B19 -> Ou | O15: 0
D16: 0
D17: 0
D18: 0
D19: 0
D20: 0
D21: 0
D22: 0
D23: 0
D24: 0
D25: 0
D26: 0
D27: 0
D28: 0
D29: 0
D30: 0
D31: 0
A32: Total | C32: =SUM(C4:C31) -> 0 | F32: Total | H32: =SUM(H4:H31) -> 0

Sheet 16
A1: FATURAMENTO REFERENTE AO DIA | B1: 2017-05-15 | C1: Previsto | F1: Saldo do dia anterios | H1: ='15'!#REF! ->  | I1: FATURAMENTO REAL | K1: =B1+1 -> 2017-05-16 | M1: Dinheiro em Conta
A2: Contas Previstas para pagamento | C2: Saldo Anterior | D2: ='15'!#REF! ->  | E2: Tipo de Custo | F2: Contas Pagas - Real | M2: Notas Grandes
A3: Fornecedor | B3: Vencimento | C3: Valor | D3: =SUM(D1:D2) ->  | F3: Fornecedor | G3: Vencimento | H3: Valor | I3: Forma de pagamento | J3: - | M3: Dinheiro trocado
D4: =D3-C4 ->  | J4: =J1-H4 -> 0 | M4: Cheques
D5: =D4-C5 ->  | J5: =J4-H5 -> 0 | M5: Total | N5: =SUM(N1:N4) -> 0
J6: 0
J7: 0
J8: 0 | M8: Tipo de Custos | N8: Cód | O8: Total dia
J9: 0 | M9: =' Fechamento Mensal '!$A$13 -> Matéria-Prima | N9: =' Fechamento Mensal '!$B$13 -> MP | O9: =SUMIF($E$4:$E$31,N9,H4:H31) -> 0
J10: 0 | M10: =' Fechamento Mensal '!$A$14 -> Operacional | N10: =' Fechamento Mensal '!$B$14 -> Op | O10: =SUMIF($E$4:$E$31,N10,$H$4:$H$31) -> 0
J11: 0 | M11: =' Fechamento Mensal '!$A$15 -> Despesas Fixas | N11: =' Fechamento Mensal '!$B$15 -> Fx | O11: =SUMIF($E$4:$E$31,N11,$H$4:$H$31) -> 0
J12: 0 | M12: =' Fechamento Mensal '!$A$16 -> Variáveis | N12: =' Fechamento Mensal '!$B$16 -> Va | O12: 0
J13: 0 | M13: =' Fechamento Mensal '!$A$17 -> Financeiras (taxas e juros) | N13: =' Fechamento Mensal '!$B$17 -> Tx | O13: 0
J14: 0 | M14: =' Fechamento Mensal '!$A$18 -> Pró-labore | N14: =' Fechamento Mensal '!$B$18 -> PL | O14: 0
J15: 0 | M15: =' Fechamento Mensal '!$A$19 -> Outros | N15: =' Fechamento Mensal '!B19 -> Ou | O15: 0
J16: 0
J17: 0
J18: 0
J19: 0
J20: 0
J21: 0
J22: 0
J23: 0
J24: 0
J25: 0
J26: 0
J27: 0
J28: 0
J29: 0
J30: 0
J31: 0
A32: Total | C32: =SUM(C4:C31) -> 0 | F32: Total | H32: =SUM(H4:H31) -> 0

Sheet 17
A1: FATURAMENTO REFERENTE AO DIA | B1: 2017-05-16 | C1: Previsto | F1: Saldo do dia anterios | H1: ='16'!J31 -> 0 | I1: FATURAMENTO REAL | K1: =B1+1 -> 2017-05-17 | M1: Dinheiro em Conta | N1: 3296
A2: Contas Previstas para pagamento | C2: Saldo Anterior | D2: ='16'!D31 ->  | E2: Tipo de Custo | F2: Contas Pagas - Real | M2: Notas Grandes | N2: =500+1250 -> 1750
A3: Fornecedor | B3: Vencimento | C3: Valor | D3: =SUM(D1:D2) ->  | F3: Fornecedor | G3: Vencimento | H3: Valor | I3: Forma de pagamento | J3: - | M3: Dinheiro trocado | N3: =280+300+160+140+42.35 -> 922.35
D4: =D3-C4 ->  | J4: =J1-H4 -> 0 | M4: Cheques
D5: =D4-C5 ->  | J5: =J4-H5 -> 0 | M5: Total | N5: =SUM(N1:N4) -> 5968.35
J6: 0
J7: 0
J8: 0 | M8: Tipo de Custos | N8: Cód | O8: Total dia
J9: 0 | M9: =' Fechamento Mensal '!$A$13 -> Matéria-Prima | N9: =' Fechamento Mensal '!$B$13 -> MP | O9: =SUMIF($E$4:$E$31,N9,H4:H31) -> 0
J10: 0 | M10: =' Fechamento Mensal '!$A$14 -> Operacional | N10: =' Fechamento Mensal '!$B$14 -> Op | O10: =SUMIF($E$4:$E$31,N10,$H$4:$H$31) -> 0
J11: 0 | M11: =' Fechamento Mensal '!$A$15 -> Despesas Fixas | N11: =' Fechamento Mensal '!$B$15 -> Fx | O11: =SUMIF($E$4:$E$31,N11,$H$4:$H$31) -> 0
J12: 0 | M12: =' Fechamento Mensal '!$A$16 -> Variáveis | N12: =' Fechamento Mensal '!$B$16 -> Va | O12: 0
J13: 0 | M13: =' Fechamento Mensal '!$A$17 -> Financeiras (taxas e juros) | N13: =' Fechamento Mensal '!$B$17 -> Tx | O13: 0
J14: 0 | M14: =' Fechamento Mensal '!$A$18 -> Pró-labore | N14: =' Fechamento Mensal '!$B$18 -> PL | O14: 0
J15: 0 | M15: =' Fechamento Mensal '!$A$19 -> Outros | N15: =' Fechamento Mensal '!B19 -> Ou | O15: 0
J16: 0
J17: 0
J18: 0
J19: 0
J20: 0
J21: 0
J22: 0
J23: 0
J24: 0
J25: 0
J26: 0
J27: 0
J28: 0
J29: 0
J30: 0
J31: 0
A32: Total | C32: =SUM(C4:C31) -> 0 | F32: Total | H32: =SUM(H4:H31) -> 0

Sheet 18
A1: FATURAMENTO REFERENTE AO DIA | B1: 2017-05-17 | C1: Previsto | F1: Saldo do dia anterios | H1: ='17'!J31 -> 0 | I1: FATURAMENTO REAL | K1: =B1+1 -> 2017-05-18 | M1: Dinheiro em Conta | N1: 4278
A2: Contas Previstas para pagamento | C2: Saldo Anterior | E2: Tipo de Custo | F2: Contas Pagas - Real | M2: Notas Grandes | N2: =600+1750 -> 2350
A3: Fornecedor | B3: Vencimento | C3: Valor | D3: =SUM(D1:D2) -> 0 | F3: Fornecedor | G3: Vencimento | H3: Valor | I3: Forma de pagamento | J3: - | M3: Dinheiro trocado | N3: =320+170+110+114+44.2 -> 758.2
D4: =D3-C4 -> 0 | J4: =J1-H4 -> 0 | M4: Cheques
D5: =D4-C5 -> 0 | J5: =J4-H5 -> 0 | M5: Total | N5: =SUM(N1:N4) -> 7386.2
D6: 0 | J6: 0
D7: 0 | J7: 0
D8: 0 | J8: 0 | M8: Tipo de Custos | N8: Cód | O8: Total dia
D9: 0 | J9: 0 | M9: =' Fechamento Mensal '!$A$13 -> Matéria-Prima | N9: =' Fechamento Mensal '!$B$13 -> MP | O9: =SUMIF($E$4:$E$31,N9,H4:H31) -> 0
D10: 0 | J10: 0 | M10: =' Fechamento Mensal '!$A$14 -> Operacional | N10: =' Fechamento Mensal '!$B$14 -> Op | O10: =SUMIF($E$4:$E$31,N10,$H$4:$H$31) -> 0
D11: 0 | J11: 0 | M11: =' Fechamento Mensal '!$A$15 -> Despesas Fixas | N11: =' Fechamento Mensal '!$B$15 -> Fx | O11: =SUMIF($E$4:$E$31,N11,$H$4:$H$31) -> 0
D12: 0 | J12: 0 | M12: =' Fechamento Mensal '!$A$16 -> Variáveis | N12: =' Fechamento Mensal '!$B$16 -> Va | O12: 0
D13: 0 | J13: 0 | M13: =' Fechamento Mensal '!$A$17 -> Financeiras (taxas e juros) | N13: =' Fechamento Mensal '!$B$17 -> Tx | O13: 0
D14: 0 | J14: 0 | M14: =' Fechamento Mensal '!$A$18 -> Pró-labore | N14: =' Fechamento Mensal '!$B$18 -> PL | O14: 0
D15: 0 | J15: 0 | M15: =' Fechamento Mensal '!$A$19 -> Outros | N15: =' Fechamento Mensal '!B19 -> Ou | O15: 0
D16: 0 | J16: 0
D17: 0 | J17: 0
D18: 0 | J18: 0
D19: 0 | J19: 0
D20: 0 | J20: 0
D21: 0 | J21: 0
D22: 0 | J22: 0
D23: 0 | J23: 0
D24: 0 | J24: 0
D25: 0 | J25: 0
D26: 0 | J26: 0
D27: 0 | J27: 0
D28: 0 | J28: 0
D29: 0 | J29: 0
D30: 0 | J30: 0
D31: 0 | J31: 0
A32: Total | C32: =SUM(C4:C31) -> 0 | F32: Total | H32: =SUM(H4:H31) -> 0

Sheet 19
A1: FATURAMENTO REFERENTE AO DIA | B1: 2017-05-18 | C1: Previsto | F1: Saldo do dia anterios | H1: ='18'!J31 -> 0 | I1: FATURAMENTO REAL | K1: =B1+1 -> 2017-05-19 | M1: Dinheiro em Conta | N1: 2814.91
A2: Contas Previstas para pagamento | C2: Saldo Anterior | E2: Tipo de Custo | F2: Contas Pagas - Real | M2: Notas Grandes | N2: =500+400 -> 900
A3: Fornecedor | B3: Vencimento | C3: Valor | D3: =SUM(D1:D2) -> 0 | F3: Fornecedor | G3: Vencimento | H3: Valor | I3: Forma de pagamento | J3: - | M3: Dinheiro trocado | N3: =360+290+105+80+25.7 -> 860.7
D4: =D3-C4 -> 0 | J4: =J1-H4 -> 0 | M4: Cheques
D5: =D4-C5 -> 0 | J5: =J4-H5 -> 0 | M5: Total | N5: =SUM(N1:N4) -> 4575.61
D6: 0 | J6: 0
D7: 0 | J7: 0
D8: 0 | J8: 0 | M8: Tipo de Custos | N8: Cód | O8: Total dia
D9: 0 | J9: 0 | M9: =' Fechamento Mensal '!$A$13 -> Matéria-Prima | N9: =' Fechamento Mensal '!$B$13 -> MP | O9: =SUMIF($E$4:$E$31,N9,H4:H31) -> 0
D10: 0 | J10: 0 | M10: =' Fechamento Mensal '!$A$14 -> Operacional | N10: =' Fechamento Mensal '!$B$14 -> Op | O10: =SUMIF($E$4:$E$31,N10,$H$4:$H$31) -> 0
D11: 0 | J11: 0 | M11: =' Fechamento Mensal '!$A$15 -> Despesas Fixas | N11: =' Fechamento Mensal '!$B$15 -> Fx | O11: =SUMIF($E$4:$E$31,N11,$H$4:$H$31) -> 0
D12: 0 | J12: 0 | M12: =' Fechamento Mensal '!$A$16 -> Variáveis | N12: =' Fechamento Mensal '!$B$16 -> Va | O12: 0
D13: 0 | J13: 0 | M13: =' Fechamento Mensal '!$A$17 -> Financeiras (taxas e juros) | N13: =' Fechamento Mensal '!$B$17 -> Tx | O13: 0
D14: =D13-C14 -> 0 | J14: 0 | M14: =' Fechamento Mensal '!$A$18 -> Pró-labore | N14: =' Fechamento Mensal '!$B$18 -> PL | O14: 0
D15: =D14-C15 -> 0 | J15: 0 | M15: =' Fechamento Mensal '!$A$19 -> Outros | N15: =' Fechamento Mensal '!B19 -> Ou | O15: 0
D16: =D15-C16 -> 0 | J16: 0
D17: 0 | J17: 0
D18: 0 | J18: 0
D19: 0 | J19: 0
D20: 0 | J20: 0
D21: 0 | J21: 0
D22: 0 | J22: 0
D23: =D22-C23 -> 0 | J23: 0
D24: =D23-C24 -> 0 | J24: 0
D25: =D24-C25 -> 0 | J25: 0
D26: 0 | J26: 0
D27: 0 | J27: 0
D28: 0 | J28: 0
D29: 0 | J29: 0
D30: 0 | J30: 0
D31: 0 | J31: 0
A32: Total | C32: =SUM(C4:C31) -> 0 | F32: Total | H32: =SUM(H4:H31) -> 0

Sheet 20
A1: FATURAMENTO REFERENTE AO DIA | B1: 2017-05-18 | C1: Previsto | F1: Saldo do dia anterios | H1: ='18'!J31 -> 0 | I1: FATURAMENTO REAL | K1: =B1+1 -> 2017-05-19 | M1: Dinheiro em Conta | N1: 2814.91
A2: Contas Previstas para pagamento | C2: Saldo Anterior | E2: Tipo de Custo | F2: Contas Pagas - Real | M2: Notas Grandes | N2: =500+400 -> 900
A3: Fornecedor | B3: Vencimento | C3: Valor | D3: =SUM(D1:D2) -> 0 | F3: Fornecedor | G3: Vencimento | H3: Valor | I3: Forma de pagamento | J3: - | M3: Dinheiro trocado | N3: =360+290+105+80+25.7 -> 860.7
D4: =D3-C4 -> 0 | J4: =J1-H4 -> 0 | M4: Cheques
D5: =D4-C5 -> 0 | J5: =J4-H5 -> 0 | M5: Total | N5: =SUM(N1:N4) -> 4575.61
D6: 0 | J6: 0
D7: 0 | J7: 0
D8: 0 | J8: 0 | M8: Tipo de Custos | N8: Cód | O8: Total dia
D9: 0 | J9: 0 | M9: =' Fechamento Mensal '!$A$13 -> Matéria-Prima | N9: =' Fechamento Mensal '!$B$13 -> MP | O9: =SUMIF($E$4:$E$31,N9,H4:H31) -> 0
D10: 0 | J10: 0 | M10: =' Fechamento Mensal '!$A$14 -> Operacional | N10: =' Fechamento Mensal '!$B$14 -> Op | O10: =SUMIF($E$4:$E$31,N10,$H$4:$H$31) -> 0
D11: 0 | J11: 0 | M11: =' Fechamento Mensal '!$A$15 -> Despesas Fixas | N11: =' Fechamento Mensal '!$B$15 -> Fx | O11: =SUMIF($E$4:$E$31,N11,$H$4:$H$31) -> 0
D12: 0 | J12: 0 | M12: =' Fechamento Mensal '!$A$16 -> Variáveis | N12: =' Fechamento Mensal '!$B$16 -> Va | O12: 0
D13: 0 | J13: 0 | M13: =' Fechamento Mensal '!$A$17 -> Financeiras (taxas e juros) | N13: =' Fechamento Mensal '!$B$17 -> Tx | O13: 0
D14: =D13-C14 -> 0 | J14: 0 | M14: =' Fechamento Mensal '!$A$18 -> Pró-labore | N14: =' Fechamento Mensal '!$B$18 -> PL | O14: 0
D15: =D14-C15 -> 0 | J15: 0 | M15: =' Fechamento Mensal '!$A$19 -> Outros | N15: =' Fechamento Mensal '!B19 -> Ou | O15: 0
D16: =D15-C16 -> 0 | J16: 0
D17: 0 | J17: 0
D18: 0 | J18: 0
D19: 0 | J19: 0
D20: 0 | J20: 0
D21: 0 | J21: 0
D22: 0 | J22: 0
D23: =D22-C23 -> 0 | J23: 0
D24: =D23-C24 -> 0 | J24: 0
D25: =D24-C25 -> 0 | J25: 0
D26: 0 | J26: 0
D27: 0 | J27: 0
D28: 0 | J28: 0
D29: 0 | J29: 0
D30: 0 | J30: 0
D31: 0 | J31: 0
A32: Total | C32: =SUM(C4:C31) -> 0 | F32: Total | H32: =SUM(H4:H31) -> 0

Sheet 21
A1: FATURAMENTO REFERENTE AO DIA | B1: 2017-05-20 | C1: Previsto | F1: Saldo do dia anterios | H1: ='20'!J29 -> 0 | I1: FATURAMENTO REAL | K1: =B1+1 -> 2017-05-21 | M1: Dinheiro em Conta
A2: Contas Previstas para pagamento | C2: Saldo Anterior | D2: ='20'!D29 -> 0 | E2: Tipo de Custo | F2: Contas Pagas - Real | M2: Notas Grandes
A3: Fornecedor | B3: Vencimento | C3: Valor | D3: =SUM(D1:D2) -> 0 | F3: Fornecedor | G3: Vencimento | H3: Valor | I3: Forma de pagamento | J3: - | M3: Dinheiro trocado
D4: =D3-C4 -> 0 | J4: =J1-H4 -> 0 | M4: Cheques
D5: =D4-C5 -> 0 | J5: =J4-H5 -> 0 | M5: Total | N5: =SUM(N1:N4) -> 0
D6: 0 | J6: 0
D7: 0 | J7: 0
D8: 0 | J8: 0 | M8: Tipo de Custos | N8: Cód | O8: Total dia
D9: 0 | J9: 0 | M9: =' Fechamento Mensal '!$A$13 -> Matéria-Prima | N9: =' Fechamento Mensal '!$B$13 -> MP | O9: =SUMIF($E$4:$E$31,N9,H4:H31) -> 0
D10: 0 | J10: 0 | M10: =' Fechamento Mensal '!$A$14 -> Operacional | N10: =' Fechamento Mensal '!$B$14 -> Op | O10: =SUMIF($E$4:$E$31,N10,$H$4:$H$31) -> 0
D11: 0 | J11: 0 | M11: =' Fechamento Mensal '!$A$15 -> Despesas Fixas | N11: =' Fechamento Mensal '!$B$15 -> Fx | O11: =SUMIF($E$4:$E$31,N11,$H$4:$H$31) -> 0
D12: 0 | J12: 0 | M12: =' Fechamento Mensal '!$A$16 -> Variáveis | N12: =' Fechamento Mensal '!$B$16 -> Va | O12: 0
D13: 0 | J13: 0 | M13: =' Fechamento Mensal '!$A$17 -> Financeiras (taxas e juros) | N13: =' Fechamento Mensal '!$B$17 -> Tx | O13: 0
D14: 0 | J14: 0 | M14: =' Fechamento Mensal '!$A$18 -> Pró-labore | N14: =' Fechamento Mensal '!$B$18 -> PL | O14: 0
D15: 0 | J15: 0 | M15: =' Fechamento Mensal '!$A$19 -> Outros | N15: =' Fechamento Mensal '!B19 -> Ou | O15: 0
D16: 0 | J16: 0
D17: 0 | J17: 0
D18: 0 | J18: 0
D19: 0 | J19: 0
D20: 0 | J20: 0
D21: 0 | J21: 0
D22: 0 | J22: 0
D23: 0 | J23: 0
D24: 0 | J24: 0
D25: 0 | J25: 0
D26: 0 | J26: 0
D27: 0 | J27: 0
D28: 0 | J28: 0
D29: 0 | J29: 0
D30: 0 | J30: 0
D31: 0 | J31: 0
A32: Total | C32: =SUM(C4:C31) -> 0 | F32: Total | H32: =SUM(H4:H31) -> 0

Sheet Fechamento semanal3
A1: Balancete Da Semana, 15 a 21 Maio | F1: DRE Parcial Dias 15 a 21 de maio
A2: Faturamento Previsto | B2: Faturamento Real | C2: Resultado | D2: Percentual
A3: ='15'!D1+'16'!D1+'17'!D1+'18'!D1+'19'!D1+'20'!D1+'21'!D1 -> 0 | B3: ='15'!J1+'16'!J1+'17'!J1+'18'!J1+'19'!J1+'20'!J1+'21'!J1 -> 0 | C3: =B3-A3 -> 0 | D3: =B3/A3 ->  | F3: FATURAMENTO | H3: =SUM(G4:G10) -> 0
D4: =D3-C4 ->  | F4: 15 | G4: ='15'!J1 -> 0
A5: Pagamento Previstos | B5: Pagamento Realizados | C5: Resultado | D5: Percetual | F5: 16 | G5: ='16'!J1 -> 0
A6: ='15'!C32+'16'!C32+'17'!C32+'18'!C32+'19'!C32+'20'!C30+'21'!C32 -> 0 | B6: ='15'!H32+'16'!H32+'17'!H32+'18'!H32+'19'!H32+'20'!H30+'21'!H32 -> 0 | C6: =B6-A6 -> 0 | D6: =B6/A6 ->  | F6: 17 | G6: ='17'!J1 -> 0
F7: 18 | G7: ='18'!J1 -> 0
A8: Credito/Debito Acumulado Previsto | B8: =A3-A6 -> 0 | F8: 19 | G8: ='19'!J1 -> 0
A9: Credito/Debito Acumulado Real | B9: =B3-B6 -> 0 | F9: 20 | G9: ='20'!J1 -> 0
F10: 21 | G10: ='21'!J1 -> 0
F12: =K41 -> Matéria-Prima | H12: =SUM(G13:G19) -> 0 | J12: =K42 -> Operacional | L12: =SUM(K13:K19) -> 0
F13: 15 | G13: ='15'!$O$9 -> 0 | J13: 15 | K13: ='15'!$O$10 -> 0
F14: 16 | G14: ='16'!$O$9 -> 0 | J14: 16 | K14: ='16'!$O$10 -> 0
F15: 17 | G15: ='17'!$O$9 -> 0 | J15: 17 | K15: ='17'!$O$10 -> 0
F16: 18 | G16: ='18'!$O$9 -> 0 | J16: 18 | K16: ='18'!$O$10 -> 0
F17: 19 | G17: ='19'!$O$9 -> 0 | J17: 19 | K17: ='19'!$O$10 -> 0
F18: 20 | G18: ='20'!$O$9 -> 0 | J18: 20 | K18: ='20'!$O$10 -> 0
F19: 21 | G19: ='21'!$O$9 -> 0 | J19: 21 | K19: ='21'!$O$10 -> 0
F21: =K43 -> Despesas Fixas | H21: =SUM(G22:G28) -> 0 | J21: =K44 -> Variáveis | L21: =SUM(K22:K28) -> 0
F22: 15 | G22: ='15'!$O$11 -> 0 | J22: 15 | K22: ='15'!$O$12 -> 0
F23: 16 | G23: ='16'!$O$11 -> 0 | J23: 16 | K23: ='16'!$O$12 -> 0
F24: 17 | G24: ='17'!$O$11 -> 0 | J24: 17 | K24: ='17'!$O$12 -> 0
F25: 18 | G25: ='18'!$O$11 -> 0 | J25: 18 | K25: ='18'!$O$12 -> 0
F26: 19 | G26: ='19'!$O$11 -> 0 | J26: 19 | K26: ='19'!$O$12 -> 0
F27: 20 | G27: ='20'!$O$11 -> 0 | J27: 20 | K27: ='20'!$O$12 -> 0
F28: 21 | G28: ='21'!$O$11 -> 0 | J28: 21 | K28: ='21'!$O$12 -> 0
F30: =K45 -> Financeiras (taxas e juros) | H30: =SUM(G31:G37) -> 0 | J30: =K46 -> Pró-labore | L30: =SUM(K31:K37) -> 0
F31: 15 | G31: ='15'!$O$13 -> 0 | J31: 15 | K31: ='15'!$O$14 -> 0
F32: 16 | G32: ='16'!$O$13 -> 0 | J32: 16 | K32: ='16'!$O$14 -> 0
F33: 17 | G33: ='17'!$O$13 -> 0 | J33: 17 | K33: ='17'!$O$14 -> 0
F34: 18 | G34: ='18'!$O$13 -> 0 | J34: 18 | K34: ='18'!$O$14 -> 0
F35: 19 | G35: ='19'!$O$13 -> 0 | J35: 19 | K35: ='19'!$O$14 -> 0
F36: 20 | G36: ='20'!$O$13 -> 0 | J36: 20 | K36: ='20'!$O$14 -> 0
F37: 21 | G37: ='21'!$O$13 -> 0 | J37: 21 | K37: ='21'!$O$14 -> 0
F39: =K47 -> Outros | H39: =SUM(G40:G46) -> 0 | J39: RESUMO DA SEMANA
F40: 15 | G40: ='15'!$O$15 -> 0 | J40: (+) | K40: FATURAMENTO | L40: =H3 -> 0
F41: 16 | G41: ='16'!$O$15 -> 0 | J41: (-) | K41: =' Fechamento Mensal '!$A$13 -> Matéria-Prima | L41: =H12 -> 0
F42: 17 | G42: ='17'!$O$15 -> 0 | J42: (-) | K42: =' Fechamento Mensal '!$A$14 -> Operacional | L42: =L12 -> 0
F43: 18 | G43: ='18'!$O$15 -> 0 | J43: (-) | K43: =' Fechamento Mensal '!$A$15 -> Despesas Fixas | L43: =H21 -> 0
F44: 19 | G44: ='19'!$O$15 -> 0 | J44: (-) | K44: =' Fechamento Mensal '!$A$16 -> Variáveis | L44: =L21 -> 0
F45: 20 | G45: ='20'!$O$15 -> 0 | J45: (-) | K45: =' Fechamento Mensal '!$A$17 -> Financeiras (taxas e juros) | L45: =H30 -> 0
F46: 21 | G46: ='21'!$O$15 -> 0 | J46: (-) | K46: =' Fechamento Mensal '!$A$18 -> Pró-labore | L46: =L30 -> 0
J47: (-) | K47: =' Fechamento Mensal '!$A$19 -> Outros | L47: =H39 -> 0
J48: (=) | K48: RESULT SEMANA | L48: =L40-SUM(L41:L47) -> 0

Sheet 22
A1: FATURAMENTO REFERENTE AO DIA | B1: 2017-05-21 | C1: Previsto | F1: Saldo do dia anterios | H1: ='21'!J31 -> 0 | I1: FATURAMENTO REAL | K1: =B1+1 -> 2017-05-22 | M1: Dinheiro em Conta
A2: Contas Previstas para pagamento | C2: Saldo Anterior | D2: ='21'!D31 -> 0 | E2: Tipo de Custo | F2: Contas Pagas - Real | M2: Notas Grandes
A3: Fornecedor | B3: Vencimento | C3: Valor | D3: =SUM(D1:D2) -> 0 | F3: Fornecedor | G3: Vencimento | H3: Valor | I3: Forma de pagamento | J3: - | M3: Dinheiro trocado
D4: =D3-C4 -> 0 | J4: =J1-H4 -> 0 | M4: Cheques
D5: =D4-C5 -> 0 | J5: =J4-H5 -> 0 | M5: Total | N5: =SUM(N1:N4) -> 0
D6: =D5-C6 -> 0 | J6: 0
D7: 0 | J7: 0
D8: 0 | J8: 0 | M8: Tipo de Custos | N8: Cód | O8: Total dia
D9: 0 | J9: 0 | M9: =' Fechamento Mensal '!$A$13 -> Matéria-Prima | N9: =' Fechamento Mensal '!$B$13 -> MP | O9: =SUMIF($E$4:$E$31,N9,H4:H31) -> 0
D10: 0 | J10: 0 | M10: =' Fechamento Mensal '!$A$14 -> Operacional | N10: =' Fechamento Mensal '!$B$14 -> Op | O10: =SUMIF($E$4:$E$31,N10,$H$4:$H$31) -> 0
D11: 0 | J11: 0 | M11: =' Fechamento Mensal '!$A$15 -> Despesas Fixas | N11: =' Fechamento Mensal '!$B$15 -> Fx | O11: =SUMIF($E$4:$E$31,N11,$H$4:$H$31) -> 0
D12: 0 | J12: 0 | M12: =' Fechamento Mensal '!$A$16 -> Variáveis | N12: =' Fechamento Mensal '!$B$16 -> Va | O12: 0
D13: 0 | J13: 0 | M13: =' Fechamento Mensal '!$A$17 -> Financeiras (taxas e juros) | N13: =' Fechamento Mensal '!$B$17 -> Tx | O13: 0
D14: 0 | J14: 0 | M14: =' Fechamento Mensal '!$A$18 -> Pró-labore | N14: =' Fechamento Mensal '!$B$18 -> PL | O14: 0
D15: 0 | J15: 0 | M15: =' Fechamento Mensal '!$A$19 -> Outros | N15: =' Fechamento Mensal '!B19 -> Ou | O15: 0
D16: 0 | J16: 0
D17: 0 | J17: 0
D18: 0 | J18: 0
D19: 0 | J19: 0
D20: 0 | J20: 0
D21: 0 | J21: 0
D22: 0 | J22: 0
D23: 0 | J23: 0
D24: 0 | J24: 0
D25: 0 | J25: 0
D26: 0 | J26: 0
D27: 0 | J27: 0
D28: 0 | J28: 0
D29: 0 | J29: 0
D30: 0 | J30: 0
D31: 0 | J31: 0
A32: Total | C32: =SUM(C4:C31) -> 0 | F32: Total | H32: =SUM(H4:H31) -> 0

Sheet 23
A1: FATURAMENTO REFERENTE AO DIA | B1: 2017-05-22 | C1: Previsto | F1: Saldo do dia anterios | H1: ='22'!J31 -> 0 | I1: FATURAMENTO REAL | K1: =B1+1 -> 2017-05-23 | M1: Dinheiro em Conta
A2: Contas Previstas para pagamento | C2: Saldo Anterior | D2: ='22'!D31 -> 0 | E2: Tipo de Custo | F2: Contas Pagas - Real | M2: Notas Grandes
A3: Fornecedor | B3: Vencimento | C3: Valor | D3: =SUM(D1:D2) -> 0 | F3: Fornecedor | G3: Vencimento | H3: Valor | I3: Forma de pagamento | J3: - | M3: Dinheiro trocado
D4: =D3-C4 -> 0 | J4: =J1-H4 -> 0 | M4: Cheques
D5: =D4-C5 -> 0 | J5: =J4-H5 -> 0 | M5: Total | N5: =SUM(N1:N4) -> 0
D6: 0 | J6: 0
D7: 0 | J7: 0
D8: 0 | J8: 0 | M8: Tipo de Custos | N8: Cód | O8: Total dia
D9: 0 | J9: 0 | M9: =' Fechamento Mensal '!$A$13 -> Matéria-Prima | N9: =' Fechamento Mensal '!$B$13 -> MP | O9: =SUMIF($E$4:$E$31,N9,H4:H31) -> 0
D10: 0 | J10: 0 | M10: =' Fechamento Mensal '!$A$14 -> Operacional | N10: =' Fechamento Mensal '!$B$14 -> Op | O10: =SUMIF($E$4:$E$31,N10,$H$4:$H$31) -> 0
D11: 0 | J11: 0 | M11: =' Fechamento Mensal '!$A$15 -> Despesas Fixas | N11: =' Fechamento Mensal '!$B$15 -> Fx | O11: =SUMIF($E$4:$E$31,N11,$H$4:$H$31) -> 0
D12: 0 | J12: 0 | M12: =' Fechamento Mensal '!$A$16 -> Variáveis | N12: =' Fechamento Mensal '!$B$16 -> Va | O12: 0
D13: 0 | J13: 0 | M13: =' Fechamento Mensal '!$A$17 -> Financeiras (taxas e juros) | N13: =' Fechamento Mensal '!$B$17 -> Tx | O13: 0
D14: 0 | J14: 0 | M14: =' Fechamento Mensal '!$A$18 -> Pró-labore | N14: =' Fechamento Mensal '!$B$18 -> PL | O14: 0
D15: 0 | J15: 0 | M15: =' Fechamento Mensal '!$A$19 -> Outros | N15: =' Fechamento Mensal '!B19 -> Ou | O15: 0
D16: 0 | J16: 0
D17: 0 | J17: 0
D18: 0 | J18: 0
D19: 0 | J19: 0
D20: 0 | J20: 0
D21: 0 | J21: 0
D22: 0 | J22: 0
D23: 0 | J23: 0
D24: 0 | J24: 0
D25: 0 | J25: 0
D26: 0 | J26: 0
D27: 0 | J27: 0
D28: 0 | J28: 0
D29: 0 | J29: 0
D30: 0 | J30: 0
D31: 0 | J31: 0
A32: Total | C32: =SUM(C4:C31) -> 0 | F32: Total | H32: =SUM(H4:H31) -> 0

Sheet 24
A1: FATURAMENTO REFERENTE AO DIA | B1: 2017-05-23 | C1: Previsto | F1: Saldo do dia anterios | H1: ='23'!J31 -> 0 | I1: FATURAMENTO REAL | K1: =B1+1 -> 2017-05-24 | M1: Dinheiro em Conta
A2: Contas Previstas para pagamento | C2: Saldo Anterior | D2: ='23'!D31 -> 0 | E2: Tipo de Custo | F2: Contas Pagas - Real | M2: Notas Grandes
A3: Fornecedor | B3: Vencimento | C3: Valor | D3: =SUM(D1:D2) -> 0 | F3: Fornecedor | G3: Vencimento | H3: Valor | I3: Forma de pagamento | J3: - | M3: Dinheiro trocado
D4: =D3-C4 -> 0 | J4: =J1-H4 -> 0 | M4: Cheques
D5: =D4-C5 -> 0 | J5: =J4-H5 -> 0 | M5: Total | N5: =SUM(N1:N4) -> 0
D6: 0 | J6: 0
D7: 0 | J7: 0
D8: 0 | J8: 0 | M8: Tipo de Custos | N8: Cód | O8: Total dia
D9: 0 | J9: 0 | M9: =' Fechamento Mensal '!$A$13 -> Matéria-Prima | N9: =' Fechamento Mensal '!$B$13 -> MP | O9: =SUMIF($E$4:$E$31,N9,H4:H31) -> 0
D10: 0 | J10: 0 | M10: =' Fechamento Mensal '!$A$14 -> Operacional | N10: =' Fechamento Mensal '!$B$14 -> Op | O10: =SUMIF($E$4:$E$31,N10,$H$4:$H$31) -> 0
D11: 0 | J11: 0 | M11: =' Fechamento Mensal '!$A$15 -> Despesas Fixas | N11: =' Fechamento Mensal '!$B$15 -> Fx | O11: =SUMIF($E$4:$E$31,N11,$H$4:$H$31) -> 0
D12: 0 | J12: 0 | M12: =' Fechamento Mensal '!$A$16 -> Variáveis | N12: =' Fechamento Mensal '!$B$16 -> Va | O12: 0
D13: 0 | J13: 0 | M13: =' Fechamento Mensal '!$A$17 -> Financeiras (taxas e juros) | N13: =' Fechamento Mensal '!$B$17 -> Tx | O13: 0
D14: 0 | J14: 0 | M14: =' Fechamento Mensal '!$A$18 -> Pró-labore | N14: =' Fechamento Mensal '!$B$18 -> PL | O14: 0
D15: 0 | J15: 0 | M15: =' Fechamento Mensal '!$A$19 -> Outros | N15: =' Fechamento Mensal '!B19 -> Ou | O15: 0
D16: 0 | J16: 0
D17: 0 | J17: 0
D18: 0 | J18: 0
D19: 0 | J19: 0
D20: 0 | J20: 0
D21: 0 | J21: 0
D22: 0 | J22: 0
D23: 0 | J23: 0
D24: 0 | J24: 0
D25: 0 | J25: 0
D26: 0 | J26: 0
D27: 0 | J27: 0
D28: 0 | J28: 0
D29: 0 | J29: 0
D30: 0 | J30: 0
D31: 0 | J31: 0
A32: Total | C32: =SUM(C4:C31) -> 0 | F32: Total | H32: =SUM(H4:H31) -> 0

Sheet 25
A1: FATURAMENTO REFERENTE AO DIA | B1: 2017-05-24 | C1: Previsto | F1: Saldo do dia anterios | H1: ='24'!J31 -> 0 | I1: FATURAMENTO REAL | K1: =B1+1 -> 2017-05-25 | M1: Dinheiro em Conta
A2: Contas Previstas para pagamento | C2: Saldo Anterior | D2: ='24'!D31 -> 0 | E2: Tipo de Custo | F2: Contas Pagas - Real | M2: Notas Grandes
A3: Fornecedor | B3: Vencimento | C3: Valor | D3: =SUM(D1:D2) -> 0 | F3: Fornecedor | G3: Vencimento | H3: Valor | I3: Forma de pagamento | J3: - | M3: Dinheiro trocado
D4: =D3-C4 -> 0 | J4: =J1-H4 -> 0 | M4: Cheques
D5: =D4-C5 -> 0 | J5: =J4-H5 -> 0 | M5: Total | N5: =SUM(N1:N4) -> 0
D6: 0 | J6: 0
D7: 0 | J7: 0
D8: 0 | J8: 0 | M8: Tipo de Custos | N8: Cód | O8: Total dia
D9: 0 | J9: 0 | M9: =' Fechamento Mensal '!$A$13 -> Matéria-Prima | N9: =' Fechamento Mensal '!$B$13 -> MP | O9: =SUMIF($E$4:$E$31,N9,H4:H31) -> 0
D10: 0 | J10: 0 | M10: =' Fechamento Mensal '!$A$14 -> Operacional | N10: =' Fechamento Mensal '!$B$14 -> Op | O10: =SUMIF($E$4:$E$31,N10,$H$4:$H$31) -> 0
D11: 0 | J11: 0 | M11: =' Fechamento Mensal '!$A$15 -> Despesas Fixas | N11: =' Fechamento Mensal '!$B$15 -> Fx | O11: =SUMIF($E$4:$E$31,N11,$H$4:$H$31) -> 0
D12: 0 | J12: 0 | M12: =' Fechamento Mensal '!$A$16 -> Variáveis | N12: =' Fechamento Mensal '!$B$16 -> Va | O12: 0
D13: 0 | J13: 0 | M13: =' Fechamento Mensal '!$A$17 -> Financeiras (taxas e juros) | N13: =' Fechamento Mensal '!$B$17 -> Tx | O13: 0
D14: 0 | J14: 0 | M14: =' Fechamento Mensal '!$A$18 -> Pró-labore | N14: =' Fechamento Mensal '!$B$18 -> PL | O14: 0
D15: 0 | J15: 0 | M15: =' Fechamento Mensal '!$A$19 -> Outros | N15: =' Fechamento Mensal '!B19 -> Ou | O15: 0
D16: 0 | J16: 0
D17: 0 | J17: 0
D18: 0 | J18: 0
D19: 0 | J19: 0
D20: 0 | J20: 0
D21: 0 | J21: 0
D22: 0 | J22: 0
D23: 0 | J23: 0
D24: 0 | J24: 0
D25: 0 | J25: 0
D26: 0 | J26: 0
D27: 0 | J27: 0
D28: 0 | J28: 0
D29: 0 | J29: 0
D30: 0 | J30: 0
D31: 0 | J31: 0
A32: Total | C32: =SUM(C4:C31) -> 0 | F32: Total | H32: =SUM(H4:H31) -> 0

Sheet 26
A1: FATURAMENTO REFERENTE AO DIA | B1: 2017-05-25 | C1: Previsto | F1: Saldo do dia anterios | H1: ='25'!J31 -> 0 | I1: FATURAMENTO REAL | K1: =B1+1 -> 2017-05-26 | M1: Dinheiro em Conta
A2: Contas Previstas para pagamento | C2: Saldo Anterior | D2: ='25'!D31 -> 0 | E2: Tipo de Custo | F2: Contas Pagas - Real | M2: Notas Grandes
A3: Fornecedor | B3: Vencimento | C3: Valor | D3: =SUM(D1:D2) -> 0 | F3: Fornecedor | G3: Vencimento | H3: Valor | I3: Forma de pagamento | J3: - | M3: Dinheiro trocado
D4: =D3-C4 -> 0 | J4: =J1-H4 -> 0 | M4: Cheques
D5: =D4-C5 -> 0 | J5: =J4-H5 -> 0 | M5: Total | N5: =SUM(N1:N4) -> 0
D6: 0 | J6: 0
D7: 0 | J7: 0
D8: 0 | J8: 0 | M8: Tipo de Custos | N8: Cód | O8: Total dia
D9: 0 | J9: 0 | M9: =' Fechamento Mensal '!$A$13 -> Matéria-Prima | N9: =' Fechamento Mensal '!$B$13 -> MP | O9: =SUMIF($E$4:$E$31,N9,H4:H31) -> 0
D10: 0 | J10: 0 | M10: =' Fechamento Mensal '!$A$14 -> Operacional | N10: =' Fechamento Mensal '!$B$14 -> Op | O10: =SUMIF($E$4:$E$31,N10,$H$4:$H$31) -> 0
D11: 0 | J11: 0 | M11: =' Fechamento Mensal '!$A$15 -> Despesas Fixas | N11: =' Fechamento Mensal '!$B$15 -> Fx | O11: =SUMIF($E$4:$E$31,N11,$H$4:$H$31) -> 0
D12: 0 | J12: 0 | M12: =' Fechamento Mensal '!$A$16 -> Variáveis | N12: =' Fechamento Mensal '!$B$16 -> Va | O12: 0
D13: 0 | J13: 0 | M13: =' Fechamento Mensal '!$A$17 -> Financeiras (taxas e juros) | N13: =' Fechamento Mensal '!$B$17 -> Tx | O13: 0
D14: 0 | J14: 0 | M14: =' Fechamento Mensal '!$A$18 -> Pró-labore | N14: =' Fechamento Mensal '!$B$18 -> PL | O14: 0
D15: 0 | J15: 0 | M15: =' Fechamento Mensal '!$A$19 -> Outros | N15: =' Fechamento Mensal '!B19 -> Ou | O15: 0
D16: 0 | J16: 0
D17: 0 | J17: 0
D18: 0 | J18: 0
D19: 0 | J19: 0
D20: 0 | J20: 0
D21: 0 | J21: 0
D22: 0 | J22: 0
D23: 0 | J23: 0
D24: 0 | J24: 0
D25: 0 | J25: 0
D26: 0 | J26: 0
D27: 0 | J27: 0
D28: 0 | J28: 0
D29: 0 | J29: 0
D30: 0 | J30: 0
D31: 0 | J31: 0
A32: Total | C32: =SUM(C4:C31) -> 0 | F32: Total | H32: =SUM(H4:H31) -> 0

Sheet 27
A1: FATURAMENTO REFERENTE AO DIA | B1: 2017-05-26 | C1: Previsto | F1: Saldo do dia anterios | H1: ='26'!J31 -> 0 | I1: FATURAMENTO REAL | K1: =B1+1 -> 2017-05-27 | M1: Dinheiro em Conta
A2: Contas Previstas para pagamento | C2: Saldo Anterior | D2: ='26'!D31 -> 0 | E2: Tipo de Custo | F2: Contas Pagas - Real | M2: Notas Grandes
A3: Fornecedor | B3: Vencimento | C3: Valor | D3: =SUM(D1:D2) -> 0 | F3: Fornecedor | G3: Vencimento | H3: Valor | I3: Forma de pagamento | J3: - | M3: Dinheiro trocado
D4: =D3-C4 -> 0 | J4: =J1-H4 -> 0 | M4: Cheques
D5: =D4-C5 -> 0 | J5: =J4-H5 -> 0 | M5: Total | N5: =SUM(N1:N4) -> 0
D6: 0 | J6: 0
D7: 0 | J7: 0
D8: 0 | J8: 0 | M8: Tipo de Custos | N8: Cód | O8: Total dia
D9: 0 | J9: 0 | M9: =' Fechamento Mensal '!$A$13 -> Matéria-Prima | N9: =' Fechamento Mensal '!$B$13 -> MP | O9: =SUMIF($E$4:$E$31,N9,H4:H31) -> 0
D10: 0 | J10: 0 | M10: =' Fechamento Mensal '!$A$14 -> Operacional | N10: =' Fechamento Mensal '!$B$14 -> Op | O10: =SUMIF($E$4:$E$31,N10,$H$4:$H$31) -> 0
D11: 0 | J11: 0 | M11: =' Fechamento Mensal '!$A$15 -> Despesas Fixas | N11: =' Fechamento Mensal '!$B$15 -> Fx | O11: =SUMIF($E$4:$E$31,N11,$H$4:$H$31) -> 0
D12: 0 | J12: 0 | M12: =' Fechamento Mensal '!$A$16 -> Variáveis | N12: =' Fechamento Mensal '!$B$16 -> Va | O12: 0
D13: 0 | J13: 0 | M13: =' Fechamento Mensal '!$A$17 -> Financeiras (taxas e juros) | N13: =' Fechamento Mensal '!$B$17 -> Tx | O13: 0
D14: 0 | J14: 0 | M14: =' Fechamento Mensal '!$A$18 -> Pró-labore | N14: =' Fechamento Mensal '!$B$18 -> PL | O14: 0
D15: 0 | J15: 0 | M15: =' Fechamento Mensal '!$A$19 -> Outros | N15: =' Fechamento Mensal '!B19 -> Ou | O15: 0
D16: 0 | J16: 0
D17: 0 | J17: 0
D18: 0 | J18: 0
D19: 0 | J19: 0
D20: 0 | J20: 0
D21: 0 | J21: 0
D22: 0 | J22: 0
D23: 0 | J23: 0
D24: 0 | J24: 0
D25: 0 | J25: 0
D26: 0 | J26: 0
D27: 0 | J27: 0
D28: 0 | J28: 0
D29: 0 | J29: 0
D30: 0 | J30: 0
D31: 0 | J31: 0
A32: Total | C32: =SUM(C4:C31) -> 0 | F32: Total | H32: =SUM(H4:H31) -> 0

Sheet 28
A1: FATURAMENTO REFERENTE AO DIA | B1: 2017-05-27 | C1: Previsto | F1: Saldo do dia anterios | H1: ='27'!J31 -> 0 | I1: FATURAMENTO REAL | K1: =B1+1 -> 2017-05-28 | M1: Dinheiro em Conta
A2: Contas Previstas para pagamento | C2: Saldo Anterior | D2: ='27'!D31 -> 0 | E2: Tipo de Custo | F2: Contas Pagas - Real | M2: Notas Grandes
A3: Fornecedor | B3: Vencimento | C3: Valor | D3: =SUM(D1:D2) -> 0 | F3: Fornecedor | G3: Vencimento | H3: Valor | I3: Forma de pagamento | J3: - | M3: Dinheiro trocado
D4: =D3-C4 -> 0 | E4: Mp | F4: Bom peixe | H4: 5000 | J4: =J1-H4 -> -5000 | M4: Cheques
D5: =D4-C5 -> 0 | J5: =J4-H5 -> -5000 | M5: Total | N5: =SUM(N1:N4) -> 0
D6: 0 | J6: -5000
D7: 0 | J7: -5000
D8: 0 | J8: -5000 | M8: Tipo de Custos | N8: Cód | O8: Total dia
D9: 0 | J9: -5000 | M9: =' Fechamento Mensal '!$A$13 -> Matéria-Prima | N9: =' Fechamento Mensal '!$B$13 -> MP | O9: =SUMIF($E$4:$E$31,N9,H4:H31) -> 5000
D10: 0 | J10: -5000 | M10: =' Fechamento Mensal '!$A$14 -> Operacional | N10: =' Fechamento Mensal '!$B$14 -> Op | O10: =SUMIF($E$4:$E$31,N10,$H$4:$H$31) -> 0
D11: 0 | J11: -5000 | M11: =' Fechamento Mensal '!$A$15 -> Despesas Fixas | N11: =' Fechamento Mensal '!$B$15 -> Fx | O11: =SUMIF($E$4:$E$31,N11,$H$4:$H$31) -> 0
D12: 0 | J12: -5000 | M12: =' Fechamento Mensal '!$A$16 -> Variáveis | N12: =' Fechamento Mensal '!$B$16 -> Va | O12: 0
D13: 0 | J13: -5000 | M13: =' Fechamento Mensal '!$A$17 -> Financeiras (taxas e juros) | N13: =' Fechamento Mensal '!$B$17 -> Tx | O13: 0
D14: 0 | J14: -5000 | M14: =' Fechamento Mensal '!$A$18 -> Pró-labore | N14: =' Fechamento Mensal '!$B$18 -> PL | O14: 0
D15: 0 | J15: -5000 | M15: =' Fechamento Mensal '!$A$19 -> Outros | N15: =' Fechamento Mensal '!B19 -> Ou | O15: 0
D16: 0 | J16: -5000
D17: 0 | J17: -5000
D18: 0 | J18: -5000
D19: 0 | J19: -5000
D20: 0 | J20: -5000
D21: 0 | J21: -5000
D22: 0 | J22: -5000
D23: 0 | J23: -5000
D24: 0 | J24: -5000
D25: 0 | J25: -5000
D26: 0 | J26: -5000
D27: 0 | J27: -5000
D28: 0 | J28: -5000
D29: 0 | J29: -5000
D30: 0 | J30: -5000
D31: 0 | J31: -5000
A32: Total | C32: =SUM(C4:C31) -> 0 | F32: Total | H32: =SUM(H4:H31) -> 5000

Sheet Fechamento semanal4
A1: Balancete Da Semana, 22 a 28 Maio | F1: DRE Parcial Dias 22 a 28 de maio
A2: Faturamento Previsto | B2: Faturamento Real | C2: Resultado | D2: Percentual
A3: ='22'!D1+'23'!D1+'24'!D1+'25'!D1+'26'!D1+'27'!D1+'28'!D1 -> 0 | B3: ='22'!J1+'23'!J1+'24'!J1+'25'!J1+'26'!J1+'27'!J1+'28'!J1 -> 0 | C3: =B3-A3 -> 0 | D3: =B3/A3 ->  | F3: FATURAMENTO | H3: =SUM(G4:G10) -> 0
F4: 22 | G4: ='22'!J1 -> 0
A5: Pagamento Previstos | B5: Pagamento Realizados | C5: Resultado | D5: Percetual | F5: 23 | G5: ='23'!J1 -> 0
A6: ='22'!C32+'23'!C32+'24'!C32+'25'!C32+'26'!C32+'27'!C32+'28'!C32 -> 0 | B6: ='22'!H32+'23'!H32+'24'!H32+'25'!H32+'26'!H32+'27'!H32+'28'!H32 -> 5000 | C6: =B6-A6 -> 5000 | D6: =B6/A6 ->  | F6: 24 | G6: ='24'!J1 -> 0
F7: 25 | G7: ='25'!J1 -> 0
A8: Credito/Debito Acumulado Previsto | B8: =A3-A6 -> 0 | F8: 26 | G8: ='26'!J1 -> 0
A9: Credito/Debito Acumulado Real | B9: =B3-B6 -> -5000 | F9: 27 | G9: ='27'!J1 -> 0
F10: 28 | G10: ='28'!J1 -> 0
F12: =K41 -> Matéria-Prima | H12: =SUM(G13:G19) -> 5000 | J12: =K42 -> Operacional | L12: =SUM(K13:K19) -> 0
F13: 22 | G13: ='22'!$O$9 -> 0 | J13: 22 | K13: ='22'!$O$10 -> 0
F14: 23 | G14: ='23'!$O$9 -> 0 | J14: 23 | K14: ='23'!$O$10 -> 0
F15: 24 | G15: ='24'!$O$9 -> 0 | J15: 24 | K15: ='24'!$O$10 -> 0
F16: 25 | G16: ='25'!$O$9 -> 0 | J16: 25 | K16: ='25'!$O$10 -> 0
F17: 26 | G17: ='26'!$O$9 -> 0 | J17: 26 | K17: ='26'!$O$10 -> 0
F18: 27 | G18: ='27'!$O$9 -> 0 | J18: 27 | K18: ='27'!$O$10 -> 0
F19: 28 | G19: ='28'!$O$9 -> 5000 | J19: 28 | K19: ='28'!$O$10 -> 0
F21: =K43 -> Despesas Fixas | H21: =SUM(G22:G28) -> 0 | J21: =K44 -> Variáveis | L21: =SUM(K22:K28) -> 0
F22: 22 | G22: ='22'!$O$11 -> 0 | J22: 22 | K22: ='22'!$O$12 -> 0
F23: 23 | G23: ='23'!$O$11 -> 0 | J23: 23 | K23: ='23'!$O$12 -> 0
F24: 24 | G24: ='24'!$O$11 -> 0 | J24: 24 | K24: ='24'!$O$12 -> 0
F25: 25 | G25: ='25'!$O$11 -> 0 | J25: 25 | K25: ='25'!$O$12 -> 0
F26: 26 | G26: ='26'!$O$11 -> 0 | J26: 26 | K26: ='26'!$O$12 -> 0
F27: 27 | G27: ='27'!$O$11 -> 0 | J27: 27 | K27: ='27'!$O$12 -> 0
F28: 28 | G28: ='28'!$O$11 -> 0 | J28: 28 | K28: ='28'!$O$12 -> 0
F30: =K45 -> Financeiras (taxas e juros) | H30: =SUM(G31:G37) -> 0 | J30: =K46 -> Pró-labore | L30: =SUM(K31:K37) -> 0
F31: 22 | G31: ='22'!$O$13 -> 0 | J31: 22 | K31: ='22'!$O$14 -> 0
F32: 23 | G32: ='23'!$O$13 -> 0 | J32: 23 | K32: ='23'!$O$14 -> 0
F33: 24 | G33: ='24'!$O$13 -> 0 | J33: 24 | K33: ='24'!$O$14 -> 0
F34: 25 | G34: ='25'!$O$13 -> 0 | J34: 25 | K34: ='25'!$O$14 -> 0
F35: 26 | G35: ='26'!$O$13 -> 0 | J35: 26 | K35: ='26'!$O$14 -> 0
F36: 27 | G36: ='27'!$O$13 -> 0 | J36: 27 | K36: ='27'!$O$14 -> 0
F37: 28 | G37: ='28'!$O$13 -> 0 | J37: 28 | K37: ='28'!$O$14 -> 0
F39: =K47 -> Outros | H39: =SUM(G40:G46) -> 0 | J39: RESUMO DA SEMANA
F40: 22 | G40: ='22'!$O$15 -> 0 | J40: (+) | K40: FATURAMENTO | L40: =H3 -> 0
F41: 23 | G41: ='23'!$O$15 -> 0 | J41: (-) | K41: =' Fechamento Mensal '!$A$13 -> Matéria-Prima | L41: =H12 -> 5000
F42: 24 | G42: ='24'!$O$15 -> 0 | J42: (-) | K42: =' Fechamento Mensal '!$A$14 -> Operacional | L42: =L12 -> 0
F43: 25 | G43: ='25'!$O$15 -> 0 | J43: (-) | K43: =' Fechamento Mensal '!$A$15 -> Despesas Fixas | L43: =H21 -> 0
F44: 26 | G44: ='26'!$O$15 -> 0 | J44: (-) | K44: =' Fechamento Mensal '!$A$16 -> Variáveis | L44: =L21 -> 0
F45: 27 | G45: ='27'!$O$15 -> 0 | J45: (-) | K45: =' Fechamento Mensal '!$A$17 -> Financeiras (taxas e juros) | L45: =H30 -> 0
F46: 28 | G46: ='28'!$O$15 -> 0 | J46: (-) | K46: =' Fechamento Mensal '!$A$18 -> Pró-labore | L46: =L30 -> 0
J47: (-) | K47: =' Fechamento Mensal '!$A$19 -> Outros | L47: =H39 -> 0
J48: (=) | K48: RESULT SEMANA | L48: =L40-SUM(L41:L47) -> -5000

Sheet 29
A1: FATURAMENTO REFERENTE AO DIA | B1: 2017-05-28 | C1: Previsto | F1: Saldo do dia anterios | H1: ='28'!J31 -> -5000 | I1: FATURAMENTO REAL | K1: =B1+1 -> 2017-05-29 | M1: Dinheiro em Conta
A2: Contas Previstas para pagamento | C2: Saldo Anterior | D2: ='28'!D31 -> 0 | E2: Tipo de Custo | F2: Contas Pagas - Real | M2: Notas Grandes
A3: Fornecedor | B3: Vencimento | C3: Valor | D3: =SUM(D1:D2) -> 0 | F3: Fornecedor | G3: Vencimento | H3: Valor | I3: Forma de pagamento | J3: - | M3: Dinheiro trocado
D4: =D3-C4 -> 0 | J4: =J1-H4 -> 0 | M4: Cheques
D5: =D4-C5 -> 0 | J5: =J4-H5 -> 0 | M5: Total | N5: =SUM(N1:N4) -> 0
D6: 0 | J6: 0
D7: 0 | J7: 0
D8: 0 | J8: 0 | M8: Tipo de Custos | N8: Cód | O8: Total dia
D9: 0 | J9: 0 | M9: =' Fechamento Mensal '!$A$13 -> Matéria-Prima | N9: =' Fechamento Mensal '!$B$13 -> MP | O9: =SUMIF($E$4:$E$31,N9,H4:H31) -> 0
D10: 0 | J10: 0 | M10: =' Fechamento Mensal '!$A$14 -> Operacional | N10: =' Fechamento Mensal '!$B$14 -> Op | O10: =SUMIF($E$4:$E$31,N10,$H$4:$H$31) -> 0
D11: 0 | J11: 0 | M11: =' Fechamento Mensal '!$A$15 -> Despesas Fixas | N11: =' Fechamento Mensal '!$B$15 -> Fx | O11: =SUMIF($E$4:$E$31,N11,$H$4:$H$31) -> 0
D12: 0 | J12: 0 | M12: =' Fechamento Mensal '!$A$16 -> Variáveis | N12: =' Fechamento Mensal '!$B$16 -> Va | O12: 0
D13: 0 | J13: 0 | M13: =' Fechamento Mensal '!$A$17 -> Financeiras (taxas e juros) | N13: =' Fechamento Mensal '!$B$17 -> Tx | O13: 0
D14: 0 | J14: 0 | M14: =' Fechamento Mensal '!$A$18 -> Pró-labore | N14: =' Fechamento Mensal '!$B$18 -> PL | O14: 0
D15: 0 | J15: 0 | M15: =' Fechamento Mensal '!$A$19 -> Outros | N15: =' Fechamento Mensal '!B19 -> Ou | O15: 0
D16: 0 | J16: 0
D17: 0 | J17: 0
D18: 0 | J18: 0
D19: 0 | J19: 0
D20: 0 | J20: 0
D21: 0 | J21: 0
D22: 0 | J22: 0
D23: 0 | J23: 0
D24: 0 | J24: 0
D25: 0 | J25: 0
D26: 0 | J26: 0
D27: 0 | J27: 0
D28: 0 | J28: 0
D29: 0 | J29: 0
D30: 0 | J30: 0
D31: 0 | J31: 0
A32: Total | C32: =SUM(C4:C31) -> 0 | F32: Total | H32: =SUM(H4:H31) -> 0

Sheet 30
A1: FATURAMENTO REFERENTE AO DIA | B1: 2017-05-29 | C1: Previsto | F1: Saldo do dia anterios | H1: ='29'!J31 -> 0 | I1: FATURAMENTO REAL | K1: =B1+1 -> 2017-05-30 | M1: Dinheiro em Conta
A2: Contas Previstas para pagamento | C2: Saldo Anterior | D2: ='29'!D31 -> 0 | E2: Tipo de Custo | F2: Contas Pagas - Real | M2: Notas Grandes
A3: Fornecedor | B3: Vencimento | C3: Valor | D3: =SUM(D1:D2) -> 0 | F3: Fornecedor | G3: Vencimento | H3: Valor | I3: Forma de pagamento | J3: - | M3: Dinheiro trocado
D4: =D3-C4 -> 0 | J4: =J1-H4 -> 0 | M4: Cheques
D5: =D4-C5 -> 0 | J5: =J4-H5 -> 0 | M5: Total | N5: =SUM(N1:N4) -> 0
D6: 0 | J6: 0
D7: 0 | J7: 0
D8: 0 | J8: 0 | M8: Tipo de Custos | N8: Cód | O8: Total dia
D9: 0 | J9: 0 | M9: =' Fechamento Mensal '!$A$13 -> Matéria-Prima | N9: =' Fechamento Mensal '!$B$13 -> MP | O9: =SUMIF($E$4:$E$31,N9,H4:H31) -> 0
D10: 0 | J10: 0 | M10: =' Fechamento Mensal '!$A$14 -> Operacional | N10: =' Fechamento Mensal '!$B$14 -> Op | O10: =SUMIF($E$4:$E$31,N10,$H$4:$H$31) -> 0
D11: 0 | J11: 0 | M11: =' Fechamento Mensal '!$A$15 -> Despesas Fixas | N11: =' Fechamento Mensal '!$B$15 -> Fx | O11: =SUMIF($E$4:$E$31,N11,$H$4:$H$31) -> 0
D12: 0 | J12: 0 | M12: =' Fechamento Mensal '!$A$16 -> Variáveis | N12: =' Fechamento Mensal '!$B$16 -> Va | O12: 0
D13: 0 | J13: 0 | M13: =' Fechamento Mensal '!$A$17 -> Financeiras (taxas e juros) | N13: =' Fechamento Mensal '!$B$17 -> Tx | O13: 0
D14: 0 | J14: 0 | M14: =' Fechamento Mensal '!$A$18 -> Pró-labore | N14: =' Fechamento Mensal '!$B$18 -> PL | O14: 0
D15: 0 | J15: 0 | M15: =' Fechamento Mensal '!$A$19 -> Outros | N15: =' Fechamento Mensal '!B19 -> Ou | O15: 0
D16: 0 | J16: 0
D17: 0 | J17: 0
D18: 0 | J18: 0
D19: 0 | J19: 0
D20: 0 | J20: 0
D21: 0 | J21: 0
D22: 0 | J22: 0
D23: 0 | J23: 0
D24: 0 | J24: 0
D25: 0 | J25: 0
D26: 0 | J26: 0
D27: 0 | J27: 0
D28: 0 | J28: 0
D29: 0 | J29: 0
D30: 0 | J30: 0
D31: 0 | J31: 0
A32: Total | C32: =SUM(C4:C31) -> 0 | F32: Total | H32: =SUM(H4:H31) -> 0

Sheet 31
A1: FATURAMENTO REFERENTE AO DIA | B1: 2017-05-30 | C1: Previsto | F1: Saldo do dia anterios | H1: ='30'!J31 -> 0 | I1: FATURAMENTO REAL | K1: =B1+1 -> 2017-05-31 | M1: Dinheiro em Conta
A2: Contas Previstas para pagamento | C2: Saldo Anterior | D2: ='30'!D31 -> 0 | E2: Tipo de Custo | F2: Contas Pagas - Real | M2: Notas Grandes
A3: Fornecedor | B3: Vencimento | C3: Valor | D3: =SUM(D1:D2) -> 0 | F3: Fornecedor | G3: Vencimento | H3: Valor | I3: Forma de pagamento | J3: - | M3: Dinheiro trocado
D4: =D3-C4 -> 0 | E4: MP | F4: Fulano | H4: 1 | J4: =J1-H4 -> -1 | M4: Cheques
D5: =D4-C5 -> 0 | E5: Op | F5: Fulano | H5: 2 | J5: =J4-H5 -> -3 | M5: Total | N5: =SUM(N1:N4) -> 0
D6: 0 | E6: Fx | F6: Fulano | H6: 3 | J6: -6
D7: 0 | E7: Va | F7: Fulano | H7: 7 | J7: -13
D8: 0 | E8: Tx | F8: Fulano | H8: 5 | J8: -18 | M8: Tipo de Custos | N8: Cód | O8: Total dia
D9: 0 | E9: PL | F9: Fulano | H9: 6 | J9: -24 | M9: =' Fechamento Mensal '!$A$13 -> Matéria-Prima | N9: =' Fechamento Mensal '!$B$13 -> MP | O9: =SUMIF($E$4:$E$31,N9,H4:H31) -> 1
D10: 0 | E10: Ou | F10: Fulano | H10: 7 | J10: -31 | M10: =' Fechamento Mensal '!$A$14 -> Operacional | N10: =' Fechamento Mensal '!$B$14 -> Op | O10: =SUMIF($E$4:$E$31,N10,$H$4:$H$31) -> 2
D11: 0 | J11: -31 | M11: =' Fechamento Mensal '!$A$15 -> Despesas Fixas | N11: =' Fechamento Mensal '!$B$15 -> Fx | O11: =SUMIF($E$4:$E$31,N11,$H$4:$H$31) -> 3
D12: 0 | J12: -31 | M12: =' Fechamento Mensal '!$A$16 -> Variáveis | N12: =' Fechamento Mensal '!$B$16 -> Va | O12: 7
D13: 0 | J13: -31 | M13: =' Fechamento Mensal '!$A$17 -> Financeiras (taxas e juros) | N13: =' Fechamento Mensal '!$B$17 -> Tx | O13: 5
D14: 0 | J14: -31 | M14: =' Fechamento Mensal '!$A$18 -> Pró-labore | N14: =' Fechamento Mensal '!$B$18 -> PL | O14: 6
D15: 0 | J15: -31 | M15: =' Fechamento Mensal '!$A$19 -> Outros | N15: =' Fechamento Mensal '!B19 -> Ou | O15: 7
D16: 0 | J16: -31
D17: 0 | J17: -31
D18: 0 | J18: -31
D19: 0 | J19: -31
D20: 0 | J20: -31
D21: 0 | J21: -31
D22: 0 | J22: -31
D23: 0 | J23: -31
D24: 0 | J24: -31
D25: 0 | J25: -31
D26: 0 | J26: -31
D27: 0 | J27: -31
D28: 0 | J28: -31
D29: 0 | J29: -31
D30: 0 | J30: -31
D31: 0 | J31: -31
A32: Total | C32: =SUM(C4:C31) -> 0 | F32: Total | H32: =SUM(H4:H31) -> 31

Sheet Fechamento semanal5
A1: Balancete Da Semana, 29 a 31 Maio | F1: DRE Parcial Dias 29 a 31 de maio
A2: Faturamento Previsto | B2: Faturamento Real | C2: Resultado | D2: Percentual
A3: ='29'!D1+'30'!D1+'31'!D1 -> 0 | B3: ='29'!J1+'30'!J1+'31'!J1 -> 0 | C3: =B3-A3 -> 0 | D3: =B3/A3 ->  | F3: FATURAMENTO | H3: =SUM(G4:G10) -> 0
F4: 29 | G4: ='29'!J1 -> 0
A5: Pagamento Previstos | B5: Pagamento Realizados | C5: Resultado | D5: Percetual | F5: 30 | G5: ='30'!J1 -> 0
A6: ='29'!C32+'30'!C32+'31'!C32 -> 0 | B6: ='29'!H32+'30'!H32+'31'!H32 -> 31 | C6: =B6-A6 -> 31 | D6: =B6/A6 ->  | F6: 31 | G6: ='31'!J1 -> 0
A8: Credito/Debito Acumulado Previsto | B8: =A3-A6 -> 0
A9: Credito/Debito Acumulado Real | B9: =B3-B6 -> -31
F12: =K41 -> Matéria-Prima | H12: =SUM(G13:G19) -> 1 | J12: =K42 -> Operacional | L12: =SUM(K13:K19) -> 2
F13: 29 | G13: ='29'!$O$9 -> 0 | J13: 29 | K13: ='29'!$O$10 -> 0
F14: 30 | G14: ='30'!$O$9 -> 0 | J14: 30 | K14: ='30'!$O$10 -> 0
F15: 31 | G15: ='31'!$O$9 -> 1 | J15: 31 | K15: ='31'!$O$10 -> 2
F21: =K43 -> Despesas Fixas | H21: =SUM(G22:G28) -> 3 | J21: =K44 -> Variáveis | L21: =SUM(K22:K28) -> 7
F22: 29 | G22: ='29'!$O$11 -> 0 | J22: 29 | K22: ='29'!$O$12 -> 0
F23: 30 | G23: ='30'!$O$11 -> 0 | J23: 30 | K23: ='30'!$O$12 -> 0
F24: 31 | G24: ='31'!$O$11 -> 3 | J24: 31 | K24: ='31'!$O$12 -> 7
F30: =K45 -> Financeiras (taxas e juros) | H30: =SUM(G31:G37) -> 5 | J30: =K46 -> Pró-labore | L30: =SUM(K31:K37) -> 6
F31: 29 | G31: ='29'!$O$13 -> 0 | J31: 29 | K31: ='29'!$O$14 -> 0
F32: 30 | G32: ='30'!$O$13 -> 0 | J32: 30 | K32: ='30'!$O$14 -> 0
F33: 31 | G33: ='31'!$O$13 -> 5 | J33: 31 | K33: ='31'!$O$14 -> 6
F39: =K47 -> Outros | H39: =SUM(G40:G46) -> 7 | J39: RESUMO DA SEMANA
F40: 29 | G40: ='29'!$O$15 -> 0 | J40: (+) | K40: FATURAMENTO | L40: =H3 -> 0
F41: 30 | G41: ='30'!$O$15 -> 0 | J41: (-) | K41: =' Fechamento Mensal '!$A$13 -> Matéria-Prima | L41: =H12 -> 1
F42: 31 | G42: ='31'!$O$15 -> 7 | J42: (-) | K42: =' Fechamento Mensal '!$A$14 -> Operacional | L42: =L12 -> 2
J43: (-) | K43: =' Fechamento Mensal '!$A$15 -> Despesas Fixas | L43: =H21 -> 3
J44: (-) | K44: =' Fechamento Mensal '!$A$16 -> Variáveis | L44: =L21 -> 7
J45: (-) | K45: =' Fechamento Mensal '!$A$17 -> Financeiras (taxas e juros) | L45: =H30 -> 5
J46: (-) | K46: =' Fechamento Mensal '!$A$18 -> Pró-labore | L46: =L30 -> 6
J47: (-) | K47: =' Fechamento Mensal '!$A$19 -> Outros | L47: =H39 -> 7
J48: (=) | K48: RESULT SEMANA | L48: =L40-SUM(L41:L47) -> -31

Sheet Fechamento Mensal
F1: DRE Resumido Mensal - Maio
F3: (+) | G3: FATURAMENTO | H3: =SUM(H4:H8) -> 0
G4: Semana 1 | H4: ='Fechamento semanal1'!H3 -> 0
G5: Semana 2 | H5: ='Fechamento semanal2 '!H3 -> 0
G6: Semana 3 | H6: ='Fechamento semanal3 '!H3 -> 0
G7: Semana 4 | H7: =' Fechamento semanal4 '!H3 -> 0
G8: Semana 5 | H8: ='Fechamento semanal5'!H3 -> 0
F10: (-) | G10: =A13 -> Matéria-Prima | H10: =SUM(H11:H15) -> 5001 | J10: (-) | K10: =A14 -> Operacional | L10: =SUM(L11:L15) -> 2
G11: Semana 1 | H11: ='Fechamento semanal1'!H12 -> 0 | K11: Semana 1 | L11: ='Fechamento semanal1'!L12 -> 0
A12: Tipo de Custos | B12: Cód | G12: Semana 2 | H12: ='Fechamento semanal2 '!H12 -> 0 | K12: Semana 2 | L12: ='Fechamento semanal2 '!L12 -> 0
A13: Matéria-Prima | B13: MP | G13: Semana 3 | H13: ='Fechamento semanal3 '!H12 -> 0 | K13: Semana 3 | L13: ='Fechamento semanal3 '!L12 -> 0
A14: Operacional | B14: Op | G14: Semana 4 | H14: =' Fechamento semanal4 '!H12 -> 5000 | K14: Semana 4 | L14: =' Fechamento semanal4 '!L12 -> 0
A15: Despesas Fixas | B15: Fx | G15: Semana 5 | H15: ='Fechamento semanal5'!H12 -> 1 | K15: Semana 5 | L15: ='Fechamento semanal5'!L12 -> 2
A16: Variáveis | B16: Va
A17: Financeiras (taxas e juros) | B17: Tx | F17: (-) | G17: =A15 -> Despesas Fixas | H17: =SUM(H18:H22) -> 3 | J17: (-) | K17: =A16 -> Variáveis | L17: =SUM(L18:L22) -> 7
A18: Pró-labore | B18: PL | G18: Semana 1 | H18: ='Fechamento semanal1'!H21 -> 0 | K18: Semana 1 | L18: ='Fechamento semanal1'!L21 -> 0
A19: Outros | B19: Ou | G19: Semana 2 | H19: ='Fechamento semanal2 '!H21 -> 0 | K19: Semana 2 | L19: ='Fechamento semanal2 '!L21 -> 0
G20: Semana 3 | H20: ='Fechamento semanal3 '!H21 -> 0 | K20: Semana 3 | L20: ='Fechamento semanal3 '!L21 -> 0
G21: Semana 4 | H21: =' Fechamento semanal4 '!H21 -> 0 | K21: Semana 4 | L21: =' Fechamento semanal4 '!L21 -> 0
G22: Semana 5 | H22: ='Fechamento semanal5'!H21 -> 3 | K22: Semana 5 | L22: ='Fechamento semanal5'!L21 -> 7
F24: (-) | G24: =A17 -> Financeiras (taxas e juros) | H24: =SUM(H25:H29) -> 5 | J24: (-) | K24: =A18 -> Pró-labore | L24: =SUM(L25:L29) -> 6
G25: Semana 1 | H25: ='Fechamento semanal1'!H30 -> 0 | K25: Semana 1 | L25: ='Fechamento semanal1'!L30 -> 0
G26: Semana 2 | H26: ='Fechamento semanal2 '!H30 -> 0 | K26: Semana 2 | L26: ='Fechamento semanal2 '!L30 -> 0
G27: Semana 3 | H27: ='Fechamento semanal3 '!H30 -> 0 | K27: Semana 3 | L27: ='Fechamento semanal3 '!L30 -> 0
G28: Semana 4 | H28: =' Fechamento semanal4 '!H30 -> 0 | K28: Semana 4 | L28: =' Fechamento semanal4 '!L30 -> 0
G29: Semana 5 | H29: ='Fechamento semanal5'!H30 -> 5 | K29: Semana 5 | L29: ='Fechamento semanal5'!L30 -> 6
F31: (-) | G31: =A19 -> Outros | H31: =SUM(H32:H36) -> 7 | J31: (=) | K31: RESULTADO MENSAL
G32: Semana 1 | H32: ='Fechamento semanal1'!H39 -> 0
G33: Semana 2 | H33: ='Fechamento semanal2 '!H39 -> 0 | K33: =H3-H10-L10-H17-L17-H24-L24-H31 -> -5031
G34: Semana 3 | H34: ='Fechamento semanal3 '!H39 -> 0
G35: Semana 4 | H35: =' Fechamento semanal4 '!H39 -> 0
G36: Semana 5 | H36: ='Fechamento semanal5'!H39 -> 7

Sheet DRE
B3: Receita
B5: Despesas
B7: Codigo | C7: Conta
C8: Materia Prima
A9: Codigo | B9: Fornecedor | C9: Valor
A10: MP | B10: =IFERROR(VLOOKUP(A10,'1'!$E$4:$I$4,2,FALSE),"-") -> - | C10: =IFERROR(VLOOKUP(A10,'1'!$E$4:$I$4,4,FALSE),"-") -> -
B11: =IFERROR(VLOOKUP(A10,'1'!$E$5:$I$5,2,FALSE),"-") -> - | C11: =IFERROR(VLOOKUP(A10,'1'!$E$5:$I$5,4,FALSE),"-") -> -
B12: =IFERROR(VLOOKUP(A10,'1'!$E$6:$I$6,2,FALSE),"-") -> - | C12: =IFERROR(VLOOKUP(A10,'1'!$E$6:$I$6,4,FALSE),"-") -> -
B13: =IFERROR(VLOOKUP(A10,'1'!$E$7:$I$7,2,FALSE),"-") -> - | C13: =IFERROR(VLOOKUP(A10,'1'!$E$7:$I$7,4,FALSE),"-") -> -
B14: =IFERROR(VLOOKUP(A10,'1'!$E$8:$I$8,2,FALSE),"-") -> - | C14: =IFERROR(VLOOKUP(A10,'1'!$E$8:$I$8,4,FALSE),"-") -> -
B15: =IFERROR(VLOOKUP(A10,'1'!$E$9:$I$9,2,FALSE),"-") -> - | C15: =IFERROR(VLOOKUP(A10,'1'!$E$9:$I$9,4,FALSE),"-") -> -
B16: =IFERROR(VLOOKUP(A10,'1'!$E$10:$I$10,2,FALSE),"-") -> - | C16: =IFERROR(VLOOKUP(A10,'1'!$E$10:$I$10,4,FALSE),"-") -> -
B17: =IFERROR(VLOOKUP(A10,'1'!$E$11:$I$11,2,FALSE),"-") -> - | C17: =IFERROR(VLOOKUP(A10,'1'!$E$11:$I$11,4,FALSE),"-") -> -
B18: =IFERROR(VLOOKUP(A10,'1'!$E$12:$I$12,2,FALSE),"-") -> - | C18: =IFERROR(VLOOKUP(A10,'1'!$E$12:$I$12,4,FALSE),"-") -> -
B19: =IFERROR(VLOOKUP(A10,'1'!$E$13:$I$13,2,FALSE),"-") -> - | C19: =IFERROR(VLOOKUP(A10,'1'!$E$13:$I$13,4,FALSE),"-") -> -
B20: =IFERROR(VLOOKUP(A10,'1'!$E$14:$I$14,2,FALSE),"-") -> - | C20: =IFERROR(VLOOKUP(A10,'1'!$E$14:$I$14,4,FALSE),"-") -> -
B21: =IFERROR(VLOOKUP(A10,'1'!$E$15:$I$15,2,FALSE),"-") -> - | C21: =IFERROR(VLOOKUP(A10,'1'!$E$15:$I$15,4,FALSE),"-") -> -
B22: =IFERROR(VLOOKUP(A10,'1'!$E$16:$I$16,2,FALSE),"-") -> - | C22: =IFERROR(VLOOKUP(A10,'1'!$E$16:$I$16,4,FALSE),"-") -> -
B23: =IFERROR(VLOOKUP(A10,'1'!$E$17:$I$17,2,FALSE),"-") -> - | C23: =IFERROR(VLOOKUP(A10,'1'!$E$17:$I$17,4,FALSE),"-") -> -
B24: =IFERROR(VLOOKUP(A10,'1'!$E$18:$I$18,2,FALSE),"-") -> - | C24: =IFERROR(VLOOKUP(A10,'1'!$E$18:$I$18,4,FALSE),"-") -> -
B25: =IFERROR(VLOOKUP(A10,'1'!$E$19:$I$19,2,FALSE),"-") -> - | C25: =IFERROR(VLOOKUP(A10,'1'!$E$19:$I$19,4,FALSE),"-") -> -
B26: =IFERROR(VLOOKUP(A10,'1'!$E$20:$I$20,2,FALSE),"-") -> - | C26: =IFERROR(VLOOKUP(A10,'1'!$E$20:$I$20,4,FALSE),"-") -> -
B27: =IFERROR(VLOOKUP(A10,'1'!$E$21:$I$21,2,FALSE),"-") -> - | C27: =IFERROR(VLOOKUP(A10,'1'!$E$21:$I$21,4,FALSE),"-") -> -
B28: =IFERROR(VLOOKUP(A10,'1'!$E$22:$I$22,2,FALSE),"-") -> - | C28: =IFERROR(VLOOKUP(A10,'1'!$E$22:$I$22,4,FALSE),"-") -> -
B29: =IFERROR(VLOOKUP(A10,'1'!$E$23:$I$23,2,FALSE),"-") -> - | C29: =IFERROR(VLOOKUP(A10,'1'!$E$23:$I$23,4,FALSE),"-") -> -
B30: =IFERROR(VLOOKUP(A10,'1'!$E$24:$I$24,2,FALSE),"-") -> - | C30: =IFERROR(VLOOKUP(A10,'1'!$E$24:$I$24,4,FALSE),"-") -> -
B31: =IFERROR(VLOOKUP(A10,'1'!$E$25:$I$25,2,FALSE),"-") -> - | C31: =IFERROR(VLOOKUP(A10,'1'!$E$25:$I$25,4,FALSE),"-") -> -
B32: =IFERROR(VLOOKUP(A10,'1'!$E$26:$I$26,2,FALSE),"-") -> - | C32: =IFERROR(VLOOKUP(A10,'1'!$E$26:$I$26,4,FALSE),"-") -> -
B33: =IFERROR(VLOOKUP(A10,'1'!$E$27:$I$27,2,FALSE),"-") -> - | C33: =IFERROR(VLOOKUP(A10,'1'!$E$27:$I$27,4,FALSE),"-") -> -
B34: =IFERROR(VLOOKUP(A10,'1'!$E$28:$I$28,2,FALSE),"-") -> - | C34: =IFERROR(VLOOKUP(A10,'1'!$E$28:$I$28,4,FALSE),"-") -> -
B35: =IFERROR(VLOOKUP(A10,'1'!$E$29:$I$29,2,FALSE),"-") -> - | C35: =IFERROR(VLOOKUP(A10,'1'!$E$29:$I$29,4,FALSE),"-") -> -
B36: =IFERROR(VLOOKUP(A10,'1'!$E$30:$I$30,2,FALSE),"-") -> - | C36: =IFERROR(VLOOKUP(A10,'1'!$E$30:$I$30,4,FALSE),"-") -> -
B37: =IFERROR(VLOOKUP(A10,'1'!$E$31:$I$31,2,FALSE),"-") -> - | C37: =IFERROR(VLOOKUP(A10,'1'!$E$31:$I$31,4,FALSE),"-") -> -
B38: =IFERROR(VLOOKUP(A10,'2'!$E$4:$I$4,2,FALSE),"-") -> - | C38: =IFERROR(VLOOKUP(A10,'2'!$E$4:$I$4,4,FALSE),"-") -> -
B39: =IFERROR(VLOOKUP(A10,'2'!$E$5:$I$5,2,FALSE),"-") -> - | C39: =IFERROR(VLOOKUP(A10,'2'!E5:I5,4,FALSE),"-") -> -
B40: =IFERROR(VLOOKUP(A10,'2'!$E$6:$I$6,2,FALSE),"-") -> - | C40: =IFERROR(VLOOKUP(A10,'2'!E6:I6,4,FALSE),"-") -> -
B41: =IFERROR(VLOOKUP(A10,'2'!$E$7:$I$7,2,FALSE),"-") -> - | C41: =IFERROR(VLOOKUP(A10,'2'!E7:I7,4,FALSE),"-") -> -
B42: =IFERROR(VLOOKUP(A10,'2'!$E$8:$I$8,2,FALSE),"-") -> - | C42: =IFERROR(VLOOKUP(A10,'2'!E8:I8,4,FALSE),"-") -> -
B43: =IFERROR(VLOOKUP(A10,'2'!$E$9:$I$9,2,FALSE),"-") -> - | C43: =IFERROR(VLOOKUP(A10,'2'!E9:I9,4,FALSE),"-") -> -
B44: =IFERROR(VLOOKUP(A10,'2'!$E$10:$I$10,2,FALSE),"-") -> - | C44: =IFERROR(VLOOKUP(A10,'2'!E10:I10,4,FALSE),"-") -> -
B45: =IFERROR(VLOOKUP(A10,'2'!$E$11:$I$11,2,FALSE),"-") -> - | C45: =IFERROR(VLOOKUP(A10,'2'!E11:I11,4,FALSE),"-") -> -
B46: =IFERROR(VLOOKUP(A10,'2'!$E$12:$I$12,2,FALSE),"-") -> - | C46: =IFERROR(VLOOKUP(A10,'2'!E12:I12,4,FALSE),"-") -> -
B47: =IFERROR(VLOOKUP(A10,'2'!$E$13:$I$13,2,FALSE),"-") -> - | C47: =IFERROR(VLOOKUP(A10,'2'!E13:I13,4,FALSE),"-") -> -
B48: =IFERROR(VLOOKUP(A10,'2'!$E$14:$I$14,2,FALSE),"-") -> - | C48: =IFERROR(VLOOKUP(A10,'2'!E14:I14,4,FALSE),"-") -> -
B49: =IFERROR(VLOOKUP(A10,'2'!$E$15:$I$15,2,FALSE),"-") -> - | C49: =IFERROR(VLOOKUP(A10,'2'!E15:I15,4,FALSE),"-") -> -
B50: =IFERROR(VLOOKUP(A10,'2'!$E$16:$I$16,2,FALSE),"-") -> - | C50: =IFERROR(VLOOKUP(A10,'2'!E16:I16,4,FALSE),"-") -> -
B51: =IFERROR(VLOOKUP(A10,'2'!$E$17:$I$17,2,FALSE),"-") -> - | C51: =IFERROR(VLOOKUP(A10,'2'!E17:I17,4,FALSE),"-") -> -
B52: =IFERROR(VLOOKUP(A10,'2'!$E$18:$I$18,2,FALSE),"-") -> - | C52: =IFERROR(VLOOKUP(A10,'2'!E18:I18,4,FALSE),"-") -> -
B53: =IFERROR(VLOOKUP(A10,'2'!$E$19:$I$19,2,FALSE),"-") -> - | C53: =IFERROR(VLOOKUP(A10,'2'!E19:I19,4,FALSE),"-") -> -
B54: =IFERROR(VLOOKUP(A10,'2'!$E$20:$I$20,2,FALSE),"-") -> - | C54: =IFERROR(VLOOKUP(A10,'2'!E20:I20,4,FALSE),"-") -> -
B55: =IFERROR(VLOOKUP(A10,'2'!$E$21:$I$21,2,FALSE),"-") -> - | C55: =IFERROR(VLOOKUP(A10,'2'!E21:I21,4,FALSE),"-") -> -
B56: =IFERROR(VLOOKUP(A10,'2'!$E$22:$I$22,2,FALSE),"-") -> - | C56: =IFERROR(VLOOKUP(A10,'2'!E22:I22,4,FALSE),"-") -> -
B57: =IFERROR(VLOOKUP(A10,'2'!$E$23:$I$23,2,FALSE),"-") -> - | C57: =IFERROR(VLOOKUP(A10,'2'!E23:I23,4,FALSE),"-") -> -
B58: =IFERROR(VLOOKUP(A10,'2'!$E$24:$I$24,2,FALSE),"-") -> - | C58: =IFERROR(VLOOKUP(A10,'2'!E24:I24,4,FALSE),"-") -> -
B59: =IFERROR(VLOOKUP(A10,'2'!$E$25:$I$25,2,FALSE),"-") -> - | C59: =IFERROR(VLOOKUP(A10,'2'!E25:I25,4,FALSE),"-") -> -
B60: =IFERROR(VLOOKUP(A10,'2'!$E$26:$I$26,2,FALSE),"-") -> - | C60: =IFERROR(VLOOKUP(A10,'2'!E26:I26,4,FALSE),"-") -> -
B61: =IFERROR(VLOOKUP(A10,'2'!$E$27:$I$27,2,FALSE),"-") -> - | C61: =IFERROR(VLOOKUP(A10,'2'!E27:I27,4,FALSE),"-") -> -
B62: =IFERROR(VLOOKUP(A10,'2'!$E$28:$I$28,2,FALSE),"-") -> - | C62: =IFERROR(VLOOKUP(A10,'2'!E28:I28,4,FALSE),"-") -> -
B63: =IFERROR(VLOOKUP(A10,'2'!$E$29:$I$29,2,FALSE),"-") -> - | C63: =IFERROR(VLOOKUP(A10,'2'!E29:I29,4,FALSE),"-") -> -
B64: =IFERROR(VLOOKUP(A10,'2'!$E$30:$I$30,2,FALSE),"-") -> - | C64: =IFERROR(VLOOKUP(A10,'2'!E30:I30,4,FALSE),"-") -> -
B65: =IFERROR(VLOOKUP(A10,'2'!$E$31:$I$31,2,FALSE),"-") -> - | C65: =IFERROR(VLOOKUP(A10,'2'!E31:I31,4,FALSE),"-") -> -
B66: =IFERROR(VLOOKUP(A10,'3'!$E$4:$I$4,2,FALSE),"-") -> - | C66: =IFERROR(VLOOKUP(A10,'3'!E4:I4,4,FALSE),"-") -> -
B67: =IFERROR(VLOOKUP(A10,'3'!$E$5:$I$5,2,FALSE),"-") -> - | C67: =IFERROR(VLOOKUP(A10,'3'!E5:I5,4,FALSE),"-") -> -
B68: =IFERROR(VLOOKUP(A10,'3'!$E$6:$I$6,2,FALSE),"-") -> - | C68: =IFERROR(VLOOKUP(A10,'3'!E6:I6,4,FALSE),"-") -> -
B69: =IFERROR(VLOOKUP(A10,'3'!$E$7:$I$7,2,FALSE),"-") -> - | C69: =IFERROR(VLOOKUP(A10,'3'!E7:I7,4,FALSE),"-") -> -
B70: =IFERROR(VLOOKUP(A10,'3'!$E$8:$I$8,2,FALSE),"-") -> - | C70: =IFERROR(VLOOKUP(A10,'3'!E8:I8,4,FALSE),"-") -> -
B71: =IFERROR(VLOOKUP(A10,'3'!$E$9:$I$9,2,FALSE),"-") -> - | C71: =IFERROR(VLOOKUP(A10,'3'!E9:I9,4,FALSE),"-") -> -
B72: =IFERROR(VLOOKUP(A10,'3'!$E$10:$I$10,2,FALSE),"-") -> - | C72: =IFERROR(VLOOKUP(A10,'3'!E10:I10,4,FALSE),"-") -> -
B73: =IFERROR(VLOOKUP(A10,'3'!$E$11:$I$11,2,FALSE),"-") -> - | C73: =IFERROR(VLOOKUP(A10,'3'!E11:I11,4,FALSE),"-") -> -
B74: =IFERROR(VLOOKUP(A10,'3'!$E$12:$I$12,2,FALSE),"-") -> - | C74: =IFERROR(VLOOKUP(A10,'3'!E12:I12,4,FALSE),"-") -> -
B75: =IFERROR(VLOOKUP(A10,'3'!$E$13:$I$13,2,FALSE),"-") -> - | C75: =IFERROR(VLOOKUP(A10,'3'!E13:I13,4,FALSE),"-") -> -
B76: =IFERROR(VLOOKUP(A10,'3'!$E$14:$I$14,2,FALSE),"-") -> - | C76: =IFERROR(VLOOKUP(A10,'3'!E14:I14,4,FALSE),"-") -> -
B77: =IFERROR(VLOOKUP(A10,'3'!$E$15:$I$15,2,FALSE),"-") -> - | C77: =IFERROR(VLOOKUP(A10,'3'!E15:I15,4,FALSE),"-") -> -
B78: =IFERROR(VLOOKUP(A10,'3'!$E$16:$I$16,2,FALSE),"-") -> - | C78: =IFERROR(VLOOKUP(A10,'3'!E16:I16,4,FALSE),"-") -> -
B79: =IFERROR(VLOOKUP(A10,'3'!$E$17:$I$17,2,FALSE),"-") -> - | C79: =IFERROR(VLOOKUP(A10,'3'!E17:I17,4,FALSE),"-") -> -
B80: =IFERROR(VLOOKUP(A10,'3'!$E$18:$I$18,2,FALSE),"-") -> - | C80: =IFERROR(VLOOKUP(A10,'3'!E18:I18,4,FALSE),"-") -> -
B81: =IFERROR(VLOOKUP(A10,'3'!$E$19:$I$19,2,FALSE),"-") -> - | C81: =IFERROR(VLOOKUP(A10,'3'!E19:I19,4,FALSE),"-") -> -
B82: =IFERROR(VLOOKUP(A10,'3'!$E$20:$I$20,2,FALSE),"-") -> - | C82: =IFERROR(VLOOKUP(A10,'3'!E20:I20,4,FALSE),"-") -> -
B83: =IFERROR(VLOOKUP(A10,'3'!$E$21:$I$21,2,FALSE),"-") -> - | C83: =IFERROR(VLOOKUP(A10,'3'!E21:I21,4,FALSE),"-") -> -
B84: =IFERROR(VLOOKUP(A10,'3'!$E$22:$I$22,2,FALSE),"-") -> - | C84: =IFERROR(VLOOKUP(A10,'3'!E22:I22,4,FALSE),"-") -> -
B85: =IFERROR(VLOOKUP(A10,'3'!$E$23:$I$23,2,FALSE),"-") -> - | C85: =IFERROR(VLOOKUP(A10,'3'!E23:I23,4,FALSE),"-") -> -
B86: =IFERROR(VLOOKUP(A10,'3'!$E$24:$I$24,2,FALSE),"-") -> - | C86: =IFERROR(VLOOKUP(A10,'3'!E24:I24,4,FALSE),"-") -> -
B87: =IFERROR(VLOOKUP(A10,'3'!$E$25:$I$25,2,FALSE),"-") -> - | C87: =IFERROR(VLOOKUP(A10,'3'!E25:I25,4,FALSE),"-") -> -
B88: =IFERROR(VLOOKUP(A10,'3'!$E$26:$I$26,2,FALSE),"-") -> - | C88: =IFERROR(VLOOKUP(A10,'3'!E26:I26,4,FALSE),"-") -> -
B89: =IFERROR(VLOOKUP(A10,'3'!$E$27:$I$27,2,FALSE),"-") -> - | C89: =IFERROR(VLOOKUP(A10,'3'!E27:I27,4,FALSE),"-") -> -
B90: =IFERROR(VLOOKUP(A10,'3'!$E$28:$I$28,2,FALSE),"-") -> - | C90: =IFERROR(VLOOKUP(A10,'3'!E28:I28,4,FALSE),"-") -> -
B91: =IFERROR(VLOOKUP(A10,'3'!$E$29:$I$29,2,FALSE),"-") -> - | C91: =IFERROR(VLOOKUP(A10,'3'!E29:I29,4,FALSE),"-") -> -
B92: =IFERROR(VLOOKUP(A10,'3'!$E$30:$I$30,2,FALSE),"-") -> - | C92: =IFERROR(VLOOKUP(A10,'3'!E30:I30,4,FALSE),"-") -> -
B93: =IFERROR(VLOOKUP(A10,'3'!$E$31:$I$31,2,FALSE),"-") -> - | C93: =IFERROR(VLOOKUP(A10,'3'!E31:I31,4,FALSE),"-") -> -
B94: =IFERROR(VLOOKUP(A10,'4'!$E$4:$I$4,2,FALSE),"-") -> - | C94: =IFERROR(VLOOKUP(A10,'4'!E4:I4,4,FALSE),"-") -> -
B95: =IFERROR(VLOOKUP(A10,'4'!$E$5:$I$5,2,FALSE),"-") -> - | C95: =IFERROR(VLOOKUP(A10,'4'!E5:I5,4,FALSE),"-") -> -
B96: =IFERROR(VLOOKUP(A10,'4'!$E$6:$I$6,2,FALSE),"-") -> - | C96: =IFERROR(VLOOKUP(A10,'4'!E6:I6,4,FALSE),"-") -> -
B97: =IFERROR(VLOOKUP(A10,'4'!$E$7:$I$7,2,FALSE),"-") -> - | C97: =IFERROR(VLOOKUP(A10,'4'!E7:I7,4,FALSE),"-") -> -
B98: =IFERROR(VLOOKUP(A10,'4'!$E$8:$I$8,2,FALSE),"-") -> - | C98: =IFERROR(VLOOKUP(A10,'4'!E8:I8,4,FALSE),"-") -> -
B99: =IFERROR(VLOOKUP(A10,'4'!$E$9:$I$9,2,FALSE),"-") -> - | C99: =IFERROR(VLOOKUP(A10,'4'!E9:I9,4,FALSE),"-") -> -
B100: =IFERROR(VLOOKUP(A10,'4'!$E$10:$I$10,2,FALSE),"-") -> - | C100: =IFERROR(VLOOKUP(A10,'4'!E10:I10,4,FALSE),"-") -> -
B101: =IFERROR(VLOOKUP(A10,'4'!$E$11:$I$11,2,FALSE),"-") -> - | C101: =IFERROR(VLOOKUP(A10,'4'!E11:I11,4,FALSE),"-") -> -
B102: =IFERROR(VLOOKUP(A10,'4'!$E$12:$I$12,2,FALSE),"-") -> - | C102: =IFERROR(VLOOKUP(A10,'4'!E12:I12,4,FALSE),"-") -> -
B103: =IFERROR(VLOOKUP(A10,'4'!$E$13:$I$13,2,FALSE),"-") -> - | C103: =IFERROR(VLOOKUP(A10,'4'!E13:I13,4,FALSE),"-") -> -
B104: =IFERROR(VLOOKUP(A10,'4'!$E$14:$I$14,2,FALSE),"-") -> - | C104: =IFERROR(VLOOKUP(A10,'4'!E14:I14,4,FALSE),"-") -> -
B105: =IFERROR(VLOOKUP(A10,'4'!$E$15:$I$15,2,FALSE),"-") -> - | C105: =IFERROR(VLOOKUP(A10,'4'!E15:I15,4,FALSE),"-") -> -
B106: =IFERROR(VLOOKUP(A10,'4'!$E$16:$I$16,2,FALSE),"-") -> - | C106: =IFERROR(VLOOKUP(A10,'4'!E16:I16,4,FALSE),"-") -> -
B107: =IFERROR(VLOOKUP(A10,'4'!$E$17:$I$17,2,FALSE),"-") -> - | C107: =IFERROR(VLOOKUP(A10,'4'!E17:I17,4,FALSE),"-") -> -
B108: =IFERROR(VLOOKUP(A10,'4'!$E$18:$I$18,2,FALSE),"-") -> - | C108: =IFERROR(VLOOKUP(A10,'4'!E18:I18,4,FALSE),"-") -> -
B109: =IFERROR(VLOOKUP(A10,'4'!$E$19:$I$19,2,FALSE),"-") -> - | C109: =IFERROR(VLOOKUP(A10,'4'!E19:I19,4,FALSE),"-") -> -
B110: =IFERROR(VLOOKUP(A10,'4'!$E$20:$I$20,2,FALSE),"-") -> - | C110: =IFERROR(VLOOKUP(A10,'4'!E20:I20,4,FALSE),"-") -> -
B111: =IFERROR(VLOOKUP(A10,'4'!$E$21:$I$21,2,FALSE),"-") -> - | C111: =IFERROR(VLOOKUP(A10,'4'!E21:I21,4,FALSE),"-") -> -
B112: =IFERROR(VLOOKUP(A10,'4'!$E$22:$I$22,2,FALSE),"-") -> - | C112: =IFERROR(VLOOKUP(A10,'4'!E22:I22,4,FALSE),"-") -> -
B113: =IFERROR(VLOOKUP(A10,'4'!$E$23:$I$23,2,FALSE),"-") -> - | C113: =IFERROR(VLOOKUP(A10,'4'!E23:I23,4,FALSE),"-") -> -
B114: =IFERROR(VLOOKUP(A10,'4'!$E$24:$I$24,2,FALSE),"-") -> - | C114: =IFERROR(VLOOKUP(A10,'4'!E24:I24,4,FALSE),"-") -> -
B115: =IFERROR(VLOOKUP(A10,'4'!$E$25:$I$25,2,FALSE),"-") -> - | C115: =IFERROR(VLOOKUP(A10,'4'!E25:I25,4,FALSE),"-") -> -
B116: =IFERROR(VLOOKUP(A10,'4'!$E$26:$I$26,2,FALSE),"-") -> - | C116: =IFERROR(VLOOKUP(A10,'4'!E26:I26,4,FALSE),"-") -> -
B117: =IFERROR(VLOOKUP(A10,'4'!$E$27:$I$27,2,FALSE),"-") -> - | C117: =IFERROR(VLOOKUP(A10,'4'!E27:I27,4,FALSE),"-") -> -
B118: =IFERROR(VLOOKUP(A10,'4'!$E$28:$I$28,2,FALSE),"-") -> - | C118: =IFERROR(VLOOKUP(A10,'4'!E28:I28,4,FALSE),"-") -> -
B119: =IFERROR(VLOOKUP(A10,'4'!$E$29:$I$29,2,FALSE),"-") -> - | C119: =IFERROR(VLOOKUP(A10,'4'!E29:I29,4,FALSE),"-") -> -
B120: =IFERROR(VLOOKUP(A10,'4'!$E$30:$I$30,2,FALSE),"-") -> - | C120: =IFERROR(VLOOKUP(A10,'4'!E30:I30,4,FALSE),"-") -> -
B121: =IFERROR(VLOOKUP(A10,'4'!$E$31:$I$31,2,FALSE),"-") -> - | C121: =IFERROR(VLOOKUP(A10,'4'!E31:I31,4,FALSE),"-") -> -
B122: =IFERROR(VLOOKUP(A10,'5'!$E$4:$I$4,2,FALSE),"-") -> - | C122: =IFERROR(VLOOKUP(A10,'5'!E4:I4,4,FALSE),"-") -> -
B123: =IFERROR(VLOOKUP(A10,'5'!$E$5:$I$5,2,FALSE),"-") -> - | C123: =IFERROR(VLOOKUP(A10,'5'!E5:I5,4,FALSE),"-") -> -
B124: =IFERROR(VLOOKUP(A10,'5'!$E$6:$I$6,2,FALSE),"-") -> - | C124: =IFERROR(VLOOKUP(A10,'5'!E6:I6,4,FALSE),"-") -> -
B125: =IFERROR(VLOOKUP(A10,'5'!$E$7:$I$7,2,FALSE),"-") -> - | C125: =IFERROR(VLOOKUP(A10,'5'!E7:I7,4,FALSE),"-") -> -
B126: =IFERROR(VLOOKUP(A10,'5'!$E$8:$I$8,2,FALSE),"-") -> - | C126: =IFERROR(VLOOKUP(A10,'5'!E8:I8,4,FALSE),"-") -> -
B127: =IFERROR(VLOOKUP(A10,'5'!$E$9:$I$9,2,FALSE),"-") -> - | C127: =IFERROR(VLOOKUP(A10,'5'!E9:I9,4,FALSE),"-") -> -
B128: =IFERROR(VLOOKUP(A10,'5'!$E$10:$I$10,2,FALSE),"-") -> - | C128: =IFERROR(VLOOKUP(A10,'5'!E10:I10,4,FALSE),"-") -> -
B129: =IFERROR(VLOOKUP(A10,'5'!$E$11:$I$11,2,FALSE),"-") -> - | C129: =IFERROR(VLOOKUP(A10,'5'!E11:I11,4,FALSE),"-") -> -
B130: =IFERROR(VLOOKUP(A10,'5'!$E$12:$I$12,2,FALSE),"-") -> - | C130: =IFERROR(VLOOKUP(A10,'5'!E12:I12,4,FALSE),"-") -> -
B131: =IFERROR(VLOOKUP(A10,'5'!$E$13:$I$13,2,FALSE),"-") -> - | C131: =IFERROR(VLOOKUP(A10,'5'!E13:I13,4,FALSE),"-") -> -
B132: =IFERROR(VLOOKUP(A10,'5'!$E$14:$I$14,2,FALSE),"-") -> - | C132: =IFERROR(VLOOKUP(A10,'5'!E14:I14,4,FALSE),"-") -> -
B133: =IFERROR(VLOOKUP(A10,'5'!$E$15:$I$15,2,FALSE),"-") -> - | C133: =IFERROR(VLOOKUP(A10,'5'!E15:I15,4,FALSE),"-") -> -
B134: =IFERROR(VLOOKUP(A10,'5'!$E$16:$I$16,2,FALSE),"-") -> - | C134: =IFERROR(VLOOKUP(A10,'5'!E16:I16,4,FALSE),"-") -> -
B135: =IFERROR(VLOOKUP(A10,'5'!$E$17:$I$17,2,FALSE),"-") -> - | C135: =IFERROR(VLOOKUP(A10,'5'!E17:I17,4,FALSE),"-") -> -
B136: =IFERROR(VLOOKUP(A10,'5'!$E$18:$I$18,2,FALSE),"-") -> - | C136: =IFERROR(VLOOKUP(A10,'5'!E18:I18,4,FALSE),"-") -> -
B137: =IFERROR(VLOOKUP(A10,'5'!$E$19:$I$19,2,FALSE),"-") -> - | C137: =IFERROR(VLOOKUP(A10,'5'!E19:I19,4,FALSE),"-") -> -
B138: =IFERROR(VLOOKUP(A10,'5'!$E$20:$I$20,2,FALSE),"-") -> - | C138: =IFERROR(VLOOKUP(A10,'5'!E20:I20,4,FALSE),"-") -> -
B139: =IFERROR(VLOOKUP(A10,'5'!$E$21:$I$21,2,FALSE),"-") -> - | C139: =IFERROR(VLOOKUP(A10,'5'!E21:I21,4,FALSE),"-") -> -
B140: =IFERROR(VLOOKUP(A10,'5'!$E$22:$I$22,2,FALSE),"-") -> - | C140: =IFERROR(VLOOKUP(A10,'5'!E22:I22,4,FALSE),"-") -> -
B141: =IFERROR(VLOOKUP(A10,'5'!$E$23:$I$23,2,FALSE),"-") -> - | C141: =IFERROR(VLOOKUP(A10,'5'!E23:I23,4,FALSE),"-") -> -
B142: =IFERROR(VLOOKUP(A10,'5'!$E$24:$I$24,2,FALSE),"-") -> - | C142: =IFERROR(VLOOKUP(A10,'5'!E24:I24,4,FALSE),"-") -> -
B143: =IFERROR(VLOOKUP(A10,'5'!$E$25:$I$25,2,FALSE),"-") -> - | C143: =IFERROR(VLOOKUP(A10,'5'!E25:I25,4,FALSE),"-") -> -
B144: =IFERROR(VLOOKUP(A10,'5'!$E$26:$I$26,2,FALSE),"-") -> - | C144: =IFERROR(VLOOKUP(A10,'5'!E26:I26,4,FALSE),"-") -> -
B145: =IFERROR(VLOOKUP(A10,'5'!$E$27:$I$27,2,FALSE),"-") -> - | C145: =IFERROR(VLOOKUP(A10,'5'!E27:I27,4,FALSE),"-") -> -
B146: =IFERROR(VLOOKUP(A10,'5'!$E$28:$I$28,2,FALSE),"-") -> - | C146: =IFERROR(VLOOKUP(A10,'5'!E28:I28,4,FALSE),"-") -> -
B147: =IFERROR(VLOOKUP(A10,'5'!$E$29:$I$29,2,FALSE),"-") -> - | C147: =IFERROR(VLOOKUP(A10,'5'!E29:I29,4,FALSE),"-") -> -
B148: =IFERROR(VLOOKUP(A10,'5'!$E$30:$I$30,2,FALSE),"-") -> - | C148: =IFERROR(VLOOKUP(A10,'5'!E30:I30,4,FALSE),"-") -> -
B149: =IFERROR(VLOOKUP(A10,'5'!$E$31:$I$31,2,FALSE),"-") -> - | C149: =IFERROR(VLOOKUP(A10,'5'!E31:I31,4,FALSE),"-") -> -
B150: =IFERROR(VLOOKUP(A10,'6'!$E$4:$I$4,2,FALSE),"-") -> - | C150: =IFERROR(VLOOKUP(A10,'6'!E4:I4,4,FALSE),"-") -> -
B151: =IFERROR(VLOOKUP(A10,'6'!$E$5:$I$5,2,FALSE),"-") -> - | C151: =IFERROR(VLOOKUP(A10,'6'!E5:I5,4,FALSE),"-") -> -
B152: =IFERROR(VLOOKUP(A10,'6'!$E$6:$I$6,2,FALSE),"-") -> - | C152: =IFERROR(VLOOKUP(A10,'6'!E6:I6,4,FALSE),"-") -> -
B153: =IFERROR(VLOOKUP(A10,'6'!$E$7:$I$7,2,FALSE),"-") -> - | C153: =IFERROR(VLOOKUP(A10,'6'!E7:I7,4,FALSE),"-") -> -
B154: =IFERROR(VLOOKUP(A10,'6'!$E$8:$I$8,2,FALSE),"-") -> - | C154: =IFERROR(VLOOKUP(A10,'6'!E8:I8,4,FALSE),"-") -> -
B155: =IFERROR(VLOOKUP(A10,'6'!$E$9:$I$9,2,FALSE),"-") -> - | C155: =IFERROR(VLOOKUP(A10,'6'!E9:I9,4,FALSE),"-") -> -
B156: =IFERROR(VLOOKUP(A10,'6'!$E$10:$I$10,2,FALSE),"-") -> - | C156: =IFERROR(VLOOKUP(A10,'6'!E10:I10,4,FALSE),"-") -> -
B157: =IFERROR(VLOOKUP(A10,'6'!$E$11:$I$11,2,FALSE),"-") -> - | C157: =IFERROR(VLOOKUP(A10,'6'!E11:I11,4,FALSE),"-") -> -
B158: =IFERROR(VLOOKUP(A10,'6'!$E$12:$I$12,2,FALSE),"-") -> - | C158: =IFERROR(VLOOKUP(A10,'6'!E12:I12,4,FALSE),"-") -> -
B159: =IFERROR(VLOOKUP(A10,'6'!$E$13:$I$13,2,FALSE),"-") -> - | C159: =IFERROR(VLOOKUP(A10,'6'!E13:I13,4,FALSE),"-") -> -
B160: =IFERROR(VLOOKUP(A10,'6'!$E$14:$I$14,2,FALSE),"-") -> - | C160: =IFERROR(VLOOKUP(A10,'6'!E14:I14,4,FALSE),"-") -> -
B161: =IFERROR(VLOOKUP(A10,'6'!$E$15:$I$15,2,FALSE),"-") -> - | C161: =IFERROR(VLOOKUP(A10,'6'!E15:I15,4,FALSE),"-") -> -
B162: =IFERROR(VLOOKUP(A10,'6'!$E$16:$I$16,2,FALSE),"-") -> - | C162: =IFERROR(VLOOKUP(A10,'6'!E16:I16,4,FALSE),"-") -> -
B163: =IFERROR(VLOOKUP(A10,'6'!$E$17:$I$17,2,FALSE),"-") -> - | C163: =IFERROR(VLOOKUP(A10,'6'!E17:I17,4,FALSE),"-") -> -
B164: =IFERROR(VLOOKUP(A10,'6'!$E$18:$I$18,2,FALSE),"-") -> - | C164: =IFERROR(VLOOKUP(A10,'6'!E18:I18,4,FALSE),"-") -> -
B165: =IFERROR(VLOOKUP(A10,'6'!$E$19:$I$19,2,FALSE),"-") -> - | C165: =IFERROR(VLOOKUP(A10,'6'!E19:I19,4,FALSE),"-") -> -
B166: =IFERROR(VLOOKUP(A10,'6'!$E$20:$I$20,2,FALSE),"-") -> - | C166: =IFERROR(VLOOKUP(A10,'6'!E20:I20,4,FALSE),"-") -> -
B167: =IFERROR(VLOOKUP(A10,'6'!$E$21:$I$21,2,FALSE),"-") -> - | C167: =IFERROR(VLOOKUP(A10,'6'!E21:I21,4,FALSE),"-") -> -
B168: =IFERROR(VLOOKUP(A10,'6'!$E$22:$I$22,2,FALSE),"-") -> - | C168: =IFERROR(VLOOKUP(A10,'6'!E22:I22,4,FALSE),"-") -> -
B169: =IFERROR(VLOOKUP(A10,'6'!$E$23:$I$23,2,FALSE),"-") -> - | C169: =IFERROR(VLOOKUP(A10,'6'!E23:I23,4,FALSE),"-") -> -
B170: =IFERROR(VLOOKUP(A10,'6'!$E$24:$I$24,2,FALSE),"-") -> - | C170: =IFERROR(VLOOKUP(A10,'6'!E24:I24,4,FALSE),"-") -> -
B171: =IFERROR(VLOOKUP(A10,'6'!$E$25:$I$25,2,FALSE),"-") -> - | C171: =IFERROR(VLOOKUP(A10,'6'!E25:I25,4,FALSE),"-") -> -
B172: =IFERROR(VLOOKUP(A10,'6'!$E$26:$I$26,2,FALSE),"-") -> - | C172: =IFERROR(VLOOKUP(A10,'6'!E26:I26,4,FALSE),"-") -> -
B173: =IFERROR(VLOOKUP(A10,'6'!$E$27:$I$27,2,FALSE),"-") -> - | C173: =IFERROR(VLOOKUP(A10,'6'!E27:I27,4,FALSE),"-") -> -
B174: =IFERROR(VLOOKUP(A10,'6'!$E$28:$I$28,2,FALSE),"-") -> - | C174: =IFERROR(VLOOKUP(A10,'6'!E28:I28,4,FALSE),"-") -> -
B175: =IFERROR(VLOOKUP(A10,'6'!$E$29:$I$29,2,FALSE),"-") -> - | C175: =IFERROR(VLOOKUP(A10,'6'!E29:I29,4,FALSE),"-") -> -
B176: =IFERROR(VLOOKUP(A10,'6'!$E$30:$I$30,2,FALSE),"-") -> - | C176: =IFERROR(VLOOKUP(A10,'6'!E30:I30,4,FALSE),"-") -> -
B177: =IFERROR(VLOOKUP(A10,'6'!$E$31:$I$31,2,FALSE),"-") -> - | C177: =IFERROR(VLOOKUP(A10,'6'!E31:I31,4,FALSE),"-") -> -
B178: =IFERROR(VLOOKUP(A10,'7'!$E$4:$I$4,2,FALSE),"-") -> - | C178: =IFERROR(VLOOKUP(A10,'7'!E4:I4,4,FALSE),"-") -> -
B179: =IFERROR(VLOOKUP(A10,'7'!$E$5:$I$5,2,FALSE),"-") -> - | C179: =IFERROR(VLOOKUP(A10,'7'!E5:I5,4,FALSE),"-") -> -
B180: =IFERROR(VLOOKUP(A10,'7'!$E$6:$I$6,2,FALSE),"-") -> - | C180: =IFERROR(VLOOKUP(A10,'7'!E6:I6,4,FALSE),"-") -> -
B181: =IFERROR(VLOOKUP(A10,'7'!$E$7:$I$7,2,FALSE),"-") -> - | C181: =IFERROR(VLOOKUP(A10,'7'!E7:I7,4,FALSE),"-") -> -
B182: =IFERROR(VLOOKUP(A10,'7'!$E$8:$I$8,2,FALSE),"-") -> - | C182: =IFERROR(VLOOKUP(A10,'7'!E8:I8,4,FALSE),"-") -> -
B183: =IFERROR(VLOOKUP(A10,'7'!$E$9:$I$9,2,FALSE),"-") -> - | C183: =IFERROR(VLOOKUP(A10,'7'!E9:I9,4,FALSE),"-") -> -
B184: =IFERROR(VLOOKUP(A10,'7'!$E$10:$I$10,2,FALSE),"-") -> - | C184: =IFERROR(VLOOKUP(A10,'7'!E10:I10,4,FALSE),"-") -> -
B185: =IFERROR(VLOOKUP(A10,'7'!$E$11:$I$11,2,FALSE),"-") -> - | C185: =IFERROR(VLOOKUP(A10,'7'!E11:I11,4,FALSE),"-") -> -
B186: =IFERROR(VLOOKUP(A10,'7'!$E$12:$I$12,2,FALSE),"-") -> - | C186: =IFERROR(VLOOKUP(A10,'7'!E12:I12,4,FALSE),"-") -> -
B187: =IFERROR(VLOOKUP(A10,'7'!$E$13:$I$13,2,FALSE),"-") -> - | C187: =IFERROR(VLOOKUP(A10,'7'!E13:I13,4,FALSE),"-") -> -
B188: =IFERROR(VLOOKUP(A10,'7'!$E$14:$I$14,2,FALSE),"-") -> - | C188: =IFERROR(VLOOKUP(A10,'7'!E14:I14,4,FALSE),"-") -> -
B189: =IFERROR(VLOOKUP(A10,'7'!$E$15:$I$15,2,FALSE),"-") -> - | C189: =IFERROR(VLOOKUP(A10,'7'!E15:I15,4,FALSE),"-") -> -
B190: =IFERROR(VLOOKUP(A10,'7'!$E$16:$I$16,2,FALSE),"-") -> - | C190: =IFERROR(VLOOKUP(A10,'7'!E16:I16,4,FALSE),"-") -> -
B191: =IFERROR(VLOOKUP(A10,'7'!$E$17:$I$17,2,FALSE),"-") -> - | C191: =IFERROR(VLOOKUP(A10,'7'!E17:I17,4,FALSE),"-") -> -
B192: =IFERROR(VLOOKUP(A10,'7'!$E$18:$I$18,2,FALSE),"-") -> - | C192: =IFERROR(VLOOKUP(A10,'7'!E18:I18,4,FALSE),"-") -> -
B193: =IFERROR(VLOOKUP(A10,'7'!$E$19:$I$19,2,FALSE),"-") -> - | C193: =IFERROR(VLOOKUP(A10,'7'!E19:I19,4,FALSE),"-") -> -
B194: =IFERROR(VLOOKUP(A10,'7'!$E$20:$I$20,2,FALSE),"-") -> - | C194: =IFERROR(VLOOKUP(A10,'7'!E20:I20,4,FALSE),"-") -> -
B195: =IFERROR(VLOOKUP(A10,'7'!$E$21:$I$21,2,FALSE),"-") -> - | C195: =IFERROR(VLOOKUP(A10,'7'!E21:I21,4,FALSE),"-") -> -
B196: =IFERROR(VLOOKUP(A10,'7'!$E$22:$I$22,2,FALSE),"-") -> - | C196: =IFERROR(VLOOKUP(A10,'7'!E22:I22,4,FALSE),"-") -> -
B197: =IFERROR(VLOOKUP(A10,'7'!$E$23:$I$23,2,FALSE),"-") -> - | C197: =IFERROR(VLOOKUP(A10,'7'!E23:I23,4,FALSE),"-") -> -
B198: =IFERROR(VLOOKUP(A10,'7'!$E$24:$I$24,2,FALSE),"-") -> - | C198: =IFERROR(VLOOKUP(A10,'7'!E24:I24,4,FALSE),"-") -> -
B199: =IFERROR(VLOOKUP(A10,'7'!$E$25:$I$25,2,FALSE),"-") -> - | C199: =IFERROR(VLOOKUP(A10,'7'!E25:I25,4,FALSE),"-") -> -
B200: =IFERROR(VLOOKUP(A10,'7'!$E$26:$I$26,2,FALSE),"-") -> - | C200: =IFERROR(VLOOKUP(A10,'7'!E26:I26,4,FALSE),"-") -> -
B201: =IFERROR(VLOOKUP(A10,'7'!$E$27:$I$27,2,FALSE),"-") -> - | C201: =IFERROR(VLOOKUP(A10,'7'!E27:I27,4,FALSE),"-") -> -
B202: =IFERROR(VLOOKUP(A10,'7'!$E$28:$I$28,2,FALSE),"-") -> - | C202: =IFERROR(VLOOKUP(A10,'7'!E28:I28,4,FALSE),"-") -> -
B203: =IFERROR(VLOOKUP(A10,'7'!$E$29:$I$29,2,FALSE),"-") -> - | C203: =IFERROR(VLOOKUP(A10,'7'!E29:I29,4,FALSE),"-") -> -
B204: =IFERROR(VLOOKUP(A10,'7'!$E$30:$I$30,2,FALSE),"-") -> - | C204: =IFERROR(VLOOKUP(A10,'7'!E30:I30,4,FALSE),"-") -> -
... 4149 more rows
